Cogmind - Beta 14 @@@ ROGUE MODE // 2024.09.24 @ 20:49:09 Player: AnotherZach Result: Assimilated 0b10! Performance ------------- Evolutions (9) 4500 Regions Visited (28) 5600 Robots Destroyed (443) 2215 Value Destroyed (20119) 20119 Prototype IDs (40) 800 Alien Tech Used (15) 3000 Bonus (21391) 21391 TOTAL SCORE: 57625 Bonus ------- High Alert Combat Kills 3613 Follower Combat Kills 2565 Entered Garrisons 800 Used RIF Installer 500 Network Hubs Disabled 600 Met Zhirov 300 Built Enhanced Grunts 300 A7 Reached Mainframe 300 Met R17 at Cetus 500 Hacked Protovariant 500 Scanned by Researcher 500 Met Sigix 2000 Met MAIN.C 5000 Used 0b10 Conduit 2000 Win 3000 Friendly Fire -1087 Cogmind --------- Core Integrity 177/1600 Matter 96/300 Energy 390/400 System Corruption 0% Temperature Cool (16) Movement Hovering (63) Location 0b10 Command Parts ------- > --- POWER (4) -------- Micro Antimatter Reactor Light Quantum Reactor Light Quantum Reactor Fusion-Quantum Core > --- PROPULSION (7) --- Hovering Centrium Exoskeleton Improved Antigrav System > --- UTILITY (10) ----- Armored Scrap Engine High-capacity Storage Unit Advanced Reaction Control System Graphene Brace Advanced Force Field Improved System Guard Advanced Corruption Screen Microwarp Drive > --- WEAPON (4) ------- Cooled Nova Cannon Hpw. Ballistic Penetrator Construct/G Thermal Nova Construct/C > --- INVENTORY (20) --- Quantum Reactor Light Quantum Reactor Advanced Heat Sink Experimental Coolant Injector Matter Compressor (250) Advanced Transmission Jammer ECM Suite ECM Suite Reaction Control System Advanced Thermal Shield Point Defense System Compact HERF Cannon Null Cannon Core Cannon Sigix Terminator Peak State ------------ > --- POWER ------------ Micro Antimatter Reactor Light Quantum Reactor Light Quantum Reactor Fusion-Quantum Core > --- PROPULSION ------- Hovering Centrium Exoskeleton Improved Antigrav System Combat Linear Gravjet > --- UTILITY ---------- Armored Scrap Engine High-capacity Storage Unit ECM Suite Advanced Reaction Control System Advanced Force Field Improved System Guard Advanced Corruption Screen Microwarp Drive > --- WEAPON ----------- Compact HERF Cannon Cooled Nova Cannon Null Cannon Hpw. Ballistic Penetrator Construct/G > --- INVENTORY -------- Quantum Reactor Light Quantum Reactor Advanced Heat Sink Experimental Coolant Injector Advanced Energy Well Matter Compressor Advanced Transmission Jammer ECM Suite Reaction Control System Graphene Brace Advanced Thermal Shield Point Defense System Null Cannon Core Cannon Sigix Terminator [Rating: 232] Favorites ----------- Power Constructs Engine Heavy Ion Engine Power Core Constructs Reactor Light Quantum Reactor Propulsion Constructs Treads Light Treads Leg Aluminum Leg Hover Unit Constructs Flight Unit Xenon Bombardment Thruster Utility Armored Scrap Engine Device Armored Scrap Engine Storage Huge Storage Unit Processor Experimental Targeting Computer Hackware Hacking Suite Protection Centrium Medium Armor Plating Artifact Microwarp Drive Weapon Constructs Energy Gun Cooled Plasma Rifle Energy Cannon Constructs Ballistic Gun Constructs Ballistic Cannon Improved Light Cannon Launcher Long-range Missile Launcher Special Weapon Remote Datajack Impact Weapon Heavy Hammer Slashing Weapon Sigix Broadsword Piercing Weapon Plasma Lance Special Melee Weapon Advanced Datajack Build | -11 -10 -10 -9 -9 -9 -7 -7 -7 -6 -6 -5 -5 -5 -5 -5 -4 -4 -4 -4 -4 -4 -3 -3 -2 -2 -2 -1 -1 ------- Run | Yrd Mat Min Mat Sto Rec Fac Low Low Fac Gar Fac Gar Fac Gar Fac Fac Gar Ext Cet Arc Hub Res Qua Res Tes Sec Acc Com Slots Evolved 18 | . . . 2 . . 4 . . 2 . 2 . . . . 2 . . . . . 2 . 2 . . 2 . Power 3 | . . . . . . . . . 1 . . . . . . . . . . . . 1 . . . . 1 . Propulsion 5 | . . . 1 . . 2 . . . . 1 . . . . . . . . . . . . . . . 1 . Utility 8 | . . . 1 . . 2 . . . . 1 . . . . 2 . . . . . 1 . 2 . . -1 . Weapon 2 | . . . . . . . . . 1 . . . . . . . . . . . . . . . . . 1 . Parts Attached 666 | 7 20 7 38 31 7 15 8 3 14 26 12 9 40 22 31 2 21 39 6 4 33 33 13 73 39 37 60 16 Power 77 | . 5 1 4 2 . . . . 3 3 . . 1 2 3 . 2 3 . . 3 4 1 14 7 5 13 1 Engine 19 | . 5 1 4 2 . . . . . . . . . 1 1 . . 2 . . . . . . 2 . 1 . Core 12 | . . . . . . . . . 3 3 . . 1 1 2 . . . . . . . . . 1 . 1 . Reactor 46 | . . . . . . . . . . . . . . . . . 2 1 . . 3 4 1 14 4 5 11 1 Propulsion 58 | 2 2 2 7 8 5 1 2 1 3 . . . 2 4 5 . 2 3 . . . . . . . 2 7 . Treads 26 | 2 . . 6 8 2 . 2 . 1 . . . . . 1 . 1 2 . . . . . . . 1 . . Leg 17 | . 2 . . . 3 1 . . 2 . . . 2 2 3 . . 1 . . . . . . . 1 . . Wheel . | . . . . . . . . . . . . . . . . . . . . . . . . . . . . . Hover 7 | . . . . . . . . . . . . . . . . . 1 . . . . . . . . . 6 . Flight 8 | . . 2 1 . . . . 1 . . . . . 2 1 . . . . . . . . . . . 1 . Utility 317 | 1 4 3 11 5 1 14 6 2 5 15 7 6 18 8 12 2 9 14 5 2 19 14 7 39 22 25 30 11 Device 162 | 1 . 1 2 1 1 2 2 2 2 8 1 4 7 4 2 1 5 9 3 2 13 5 5 22 14 14 20 9 Storage 35 | . 3 . 4 . . 5 2 . 1 . 1 1 1 2 1 . 1 . 1 . . 2 1 4 2 2 1 . Processor 22 | . 1 1 1 1 . 2 . . . 1 . . . . . . . 1 . . . 3 . 3 2 1 5 . Hackware 36 | . . 1 . . . . . . 2 3 3 1 5 1 9 1 3 3 . . . 1 . 1 . 2 . . Protection 52 | . . . 4 3 . 5 2 . . 3 2 . 5 1 . . . 1 1 . 6 3 1 9 3 3 . . Artifact 10 | . . . . . . . . . . . . . . . . . . . . . . . . . 1 3 4 2 Weapon 214 | 4 9 1 16 16 1 . . . 3 8 5 3 19 8 11 . 8 19 1 2 11 15 5 20 10 5 10 4 Energy Gun 39 | . . . 2 3 . . . . 1 . 3 2 12 4 3 . . . 1 . 1 3 . 1 1 1 1 . Energy Cannon 28 | . . . . . . . . . . 1 . . . . . . 1 3 . . 3 2 . 3 3 2 6 4 Ballistic Gun 59 | 4 6 1 8 4 1 . . . 1 . . . . . 1 . 3 6 . 1 4 5 1 9 . 1 3 . Ballistic Cannon 8 | . 2 . 1 3 . . . . . 2 . . . . . . . . . . . . . . . . . . Launcher 25 | . 1 . 2 3 . . . . . 3 . 1 1 2 2 . 1 . . . . 1 1 5 2 . . . Special Weapon 29 | . . . . . . . . . . 1 2 . 6 2 5 . 2 5 . 1 . 2 2 1 . . . . Impact Weapon 7 | . . . 3 3 . . . . . . . . . . . . . . . . . . . . . 1 . . Slashing Weapon 17 | . . . . . . . . . 1 1 . . . . . . 1 5 . . 3 . 1 1 4 . . . Piercing Weapon 1 | . . . . . . . . . . . . . . . . . . . . . . 1 . . . . . . Special Melee Weapon 1 | . . . . . . . . . . . . . . . . . . . . . . 1 . . . . . . Unidentified Prototypes 38 | . . . 2 3 1 . 1 . . . 2 . . . 1 . . . 3 . . 3 5 3 6 6 2 . Parts Lost 109 | . 4 3 3 . 2 . . . 1 5 1 . 8 3 8 . 4 5 . 1 14 4 . 9 5 14 13 2 Power 30 | . . 1 . . . . . . 1 2 . . 1 1 2 . . . . . 3 1 . 5 1 5 7 . Propulsion 14 | . 1 1 . . 1 . . . . . . . 2 1 2 . . 2 . . 1 . . . . 1 2 . Utility 33 | . 1 1 2 . . . . . . 1 . . 3 1 . . 2 1 . . 7 2 . 3 3 4 2 . Weapon 32 | . 2 . 1 . 1 . . . . 2 1 . 2 . 4 . 2 2 . 1 3 1 . 1 1 4 2 2 Highest Loss Streak 6 | . 2 3 1 . 1 . . . 1 2 1 . 6 3 3 . 2 2 . 1 4 2 . 4 3 4 3 1 To Critical Strikes . | . . . . . . . . . . . . . . . . . . . . . . . . . . . . . Average Slot Usage (%) 71 | . 90 86 99 99 79 66 58 66 66 63 57 57 57 59 61 60 65 67 62 62 61 67 63 68 60 65 70 75 Engine 4 | . 11 7 11 11 10 7 1 . 5 3 5 4 . 2 1 . 1 . . . . . . . . . . . Core 1 | . . . . . . . 5 7 3 7 . . 5 4 6 10 5 . . . 1 . . . . . 1 1 Reactor 3 | . . . . . . . . . . . . . . 1 . . 1 5 5 5 3 12 9 10 9 9 11 14 Treads 7 | . 4 . 32 33 12 . . . 7 2 3 . 4 1 . . 1 5 . 1 . 3 4 2 1 4 . . Leg 3 | . 23 5 . . 7 11 . . 1 . . . . 3 6 10 3 2 5 3 3 . . 1 . 1 . . Flight 1 | . . 21 . . . 1 5 12 1 1 1 4 . . 2 . . . . . . . . . 1 . . . Device 11 | . 1 3 . 1 6 7 10 12 11 10 6 10 10 15 8 9 8 14 20 21 20 19 20 24 10 12 17 19 Storage 6 | . 10 3 10 11 11 7 7 7 6 6 5 5 5 5 3 5 5 5 5 5 5 4 4 4 5 4 4 4 Processor 3 | . 12 5 4 2 . 7 7 7 6 5 5 5 . . . . . 1 . . . 4 5 9 12 5 7 8 Hackware 5 | . . 10 11 11 4 . . . 1 . 7 5 9 . 13 13 16 12 10 10 5 . . . 4 6 2 . Protection 2 | . . . 6 6 4 5 1 1 . 1 . . . 4 . . . 1 . . 3 4 3 2 3 3 . . Energy Gun 3 | . . . 1 4 8 8 6 . 6 1 6 13 14 7 4 . . . 4 7 6 1 . . 1 . . . Energy Cannon 1 | . . . . . . . . . . 4 5 . . . . . . 1 . . . 1 . 1 . 1 6 9 Ballistic Gun 8 | . 17 28 15 7 12 5 8 15 11 2 . 2 . 2 . . 8 10 10 6 6 7 3 6 1 1 4 5 Ballistic Cannon 1 | . 7 . 3 4 . . . . . 8 . . . 2 2 . . . . . . . . . . 4 3 . Peak Build Rating 232 | 5 11 11 21 23 41 53 60 66 76 82 98 100 107 107 84 89 127 127 125 125 142 166 197 203 215 211 227 232 Average Rating 89 | 3 7 8 19 20 31 49 56 60 72 75 77 95 98 93 75 86 103 113 123 120 128 156 176 181 187 187 191 215 On Entrance 91 | . 5 9 11 20 21 40 52 60 60 73 67 91 100 107 75 77 89 105 116 125 118 124 162 189 180 196 173 220 Naked Turns . | . . . . . . . . . . . . . . . . . . . . . . . . . . . . . Heaviest Build 183 | 3 27 27 99 101 99 94 94 64 107 116 112 111 120 150 77 75 136 145 137 143 150 159 118 176 183 173 146 156 Greatest Support 247 | 3 40 20 69 66 60 46 66 72 92 136 131 157 157 97 102 102 148 167 133 171 247 188 121 121 174 174 166 166 Greatest Overweight (x) 4 | . 1 2 1 1 4 2 2 . 1 1 2 . 1 1 4 . . 2 1 1 . 1 . 1 1 1 1 1 Average Overweight (x) . | . . . . 1 1 . . . . . . . . . . . . . . . . . . . . . . . Largest Inventory Capacity 25 | 5 15 15 25 25 25 25 25 20 25 25 25 25 25 25 20 20 25 25 25 25 25 25 20 25 25 25 20 20 Average Capacity 21 | 5 9 7 18 25 25 16 19 20 23 25 24 20 24 23 16 20 23 25 25 25 25 21 20 21 24 22 20 20 Most Carried 25 | 5 12 12 25 25 25 24 24 20 25 25 25 25 25 25 20 20 25 25 25 25 25 25 20 25 25 25 20 20 Average Carried 20 | 4 7 6 16 24 23 15 18 19 22 24 24 19 23 21 14 17 20 24 24 25 23 20 19 21 23 20 19 18 Final Capacity 25 | 5 15 5 25 25 25 25 20 20 25 25 20 25 20 20 20 20 25 25 25 25 25 20 20 20 25 20 20 20 Final Carried 25 | 5 12 5 25 25 24 24 20 20 25 25 20 25 20 20 14 20 25 25 25 25 20 20 20 17 22 19 19 17 Scrap Engine Consumption 606 | . . . . . 52 22 17 9 38 61 20 20 20 17 40 2 16 74 11 1 47 33 5 35 10 13 34 9 Constructs Created 35 | . . . . . 4 . . . . 3 . 1 1 . 1 . 1 3 . 2 2 . . 4 1 4 6 2 Constructs Modified 203 | . . . . . 15 7 11 . 17 25 6 6 8 14 8 . 9 23 1 7 19 6 1 7 3 2 7 1 Class Distribution -------------------- 33% | Construct 16% | Mutant 10% | Scavenger-Mutant 6% | Commander-Construct 4% | Hacker-Mutant 4% | Scavenger-Construct 3% | Hacker-Construct 3% | Commander-Mutant Dominant Class ---------------- Mutant | -10/Materials Mutant | -10/Mines Mutant | -9/Materials Scavenger-Mutant | -9/Storage Construct | -9/Recycling Construct | -7/Factory Construct | -7/Lower Caves Construct | -7/Lower Caves Construct | -6/Factory Construct | -6/Garrison Construct | -5/Factory Construct | -5/Garrison Construct | -5/Factory Bothacker-Construct | -5/Garrison Hacker-Mutant | -5/Factory Hacker-Mutant | -4/Factory Hacker-Mutant | -4/Garrison Commander-Construct | -4/Extension Commander-Construct | -4/Cetus Hacker-Construct | -4/Archives Hacker-Construct | -4/Hub_04(d) Construct | -3/Research Scavenger-Mutant | -3/Quarantine Scavenger-Construct | -2/Research Gladiator | -2/Testing Scavenger-Mutant | -2/Section 7 Generator-Gunner | -1/Access Generator-Tank | -1/Command Resources | -11 -10 -10 -9 -9 -9 -7 -7 -7 -6 -6 -5 -5 -5 -5 -5 -4 -4 -4 -4 -4 -4 -3 -3 -2 -2 -2 -1 -1 ----------- Run | Yrd Mat Min Mat Sto Rec Fac Low Low Fac Gar Fac Gar Fac Gar Fac Fac Gar Ext Cet Arc Hub Res Qua Res Tes Sec Acc Com Matter Collected 13959 | 217 519 11 1519 743 535 254 193 54 471 716 . 412 577 336 699 . 438 1415 132 42 633 682 101 1451 617 412 777 3 Remotely 827 | . . . 115 288 . . . . . . . . 88 70 . . 266 . . . . . . . . . . . Salvage Created 21676 | 105 517 11 1898 1352 1064 355 491 115 1233 1679 202 671 1009 402 725 . 338 1036 380 118 1895 550 151 2095 1162 543 1526 53 Parts 1033 | 7 41 4 123 87 51 20 23 13 69 84 8 25 28 12 33 . 18 40 14 5 74 19 1 96 40 22 75 1 Haulers Intercepted 12 | . 2 . 4 3 . . 1 . . . . . 1 . . . . . . . . . . . 1 . . . Recyclers Shooed 19 | 1 2 . 2 1 3 . . . 2 . . . . . . . . 1 . . 1 2 . 3 . . 1 . Parts Field Recycled . | . . . . . . . . . . . . . . . . . . . . . . . . . . . . . Retrieved Matter . | . . . . . . . . . . . . . . . . . . . . . . . . . . . . . Parts Self-Destructed 25 | . . . . . . . 23 2 . . . . . . . . . . . . . . . . . . . . Prevented 2 | . . . . . . . 2 . . . . . . . . . . . . . . . . . . . . . Kills | -11 -10 -10 -9 -9 -9 -7 -7 -7 -6 -6 -5 -5 -5 -5 -5 -4 -4 -4 -4 -4 -4 -3 -3 -2 -2 -2 -1 -1 ------- Run | Yrd Mat Min Mat Sto Rec Fac Low Low Fac Gar Fac Gar Fac Gar Fac Fac Gar Ext Cet Arc Hub Res Qua Res Tes Sec Acc Com Combat Hostiles Destroyed 314 | . 14 . 34 24 5 4 6 1 7 37 2 15 19 13 15 . 7 9 5 1 25 9 . 22 15 3 21 1 Melee 15 | . 1 . 3 2 . . . . . . . . . . . . . . . . 2 1 . 2 4 . . . Guns 141 | . 3 . 19 11 5 3 6 1 6 6 1 8 13 6 3 . 5 4 4 1 19 3 . 12 . 1 1 . Cannons 73 | . 9 . 2 4 . . . . . 22 1 . . . 5 . 1 4 . . 1 2 . 4 1 . 16 1 AOE 67 | . 1 . 8 7 . . . . 1 9 . 6 3 7 6 . 1 . . . . 3 . 4 10 . 1 . Classes Destroyed 29 | 2 6 . 3 3 3 1 . 1 1 2 . . 2 . . . 1 1 . . . 2 . . 1 . . . Worker 23 | . . . 3 4 . . . . 1 . . . . . 1 . . . . . 4 1 . 8 1 . . . Builder 19 | . 1 1 3 . . . . . 1 . . . . . 1 . . . . . . . . 4 . 5 3 . Tunneler 8 | 2 1 . . . 1 . . . . . . . . . . . . 2 . . . . . 2 . . . . Hauler 12 | . 2 . 4 3 . . 1 . . . . . 1 . . . . . . . . . . . 1 . . . Recycler 34 | 1 2 . 5 2 5 1 1 . 2 . 1 . . . . . . 2 . . . . 1 4 3 1 3 . Carrier 1 | . . . . . . . . . . . . . . . . . . 1 . . . . . . . . . . Mechanic 2 | . . . . 1 . . . . 1 . . . . . . . . . . . . . . . . . . . Operator 13 | . 1 . 2 1 . . . . 2 . . . 1 . 1 . . 1 . . 1 1 . . . 1 1 . Watcher 15 | . 1 . 5 1 . 1 . . 1 . . . . . 1 . . . . . 1 . . 1 1 . 2 . Swarmer 75 | . 9 . 9 2 . . 3 . . 9 2 4 4 5 6 . 1 . . . 2 3 . 4 5 . 7 . Cutter 5 | . . . . . . . . . . 3 . . . . . . . . . . . . . 2 . . . . Saboteur 4 | . . . . . . . . . . . . . . . . . 3 . . . . . . 1 . . . . Grunt 88 | . 5 . 16 11 . 1 3 . 2 10 . 4 4 3 3 . 1 3 . 1 12 3 . 1 . 1 3 1 Brawler 7 | . . . . 1 . . . . . 1 . 2 . 1 1 . 1 . . . . . . . . . . . Duelist 7 | . . . 1 3 . . . . . 1 . 1 1 . . . . . . . . . . . . . . . Protector 3 | . . . . 2 . . . . . . . . . . . . . . . . 1 . . . . . . . Researcher 2 | . . . . . . . . . . . . . . . . . . . . . . . . . 1 1 . . Sentry 56 | . . . 8 5 2 1 . . 1 6 . 2 3 1 2 . 1 5 . . 5 1 . 6 . 2 5 . Demolisher 2 | . . . . . . . . . . . . . 2 . . . . . . . . . . . . . . . Specialist 2 | . . . . . . . . . . 1 . . . . . . . . . . . . . 1 . . . . Hunter 23 | . . . . . . 1 . 1 1 4 . 2 2 . 2 . 1 . . . . . . 4 4 . 1 . Programmer 28 | . . . . . 1 1 . . 2 1 . . . 2 2 . . 1 . . 5 . . 2 6 . 5 . Behemoth 4 | . . . . . . . . . 1 1 . . . 1 . . . . . . . . . 1 . . . . Cetus Guard 5 | . . . . . . . . . . . . . . . . . . . 5 . . . . . . . . . Striker 1 | . . . . . . . . . . . . . . . . . . . . . . 1 . . . . . . Executioner 1 | . . . . . . . . . . . . . . . . . . . . . . 1 . . . . . . Scientist 1 | . . . . . 1 . . . . . . . . . . . . . . . . . . . . . . . Scrapper 2 | . . . . . 2 . . . . . . . . . . . . . . . . . . . . . . . Samaritan 1 | . . . . . . . . 1 . . . . . . . . . . . . . . . . . . . . Assembled 4 | . . . . . . . . . . . . . 4 . . . . . . . . . . . . . . . Thug 1 | . . . . 1 . . . . . . . . . . . . . . . . . . . . . . . . Best Kill Streak 12 | 3 5 1 12 5 3 1 3 1 2 4 2 10 8 5 4 . 3 3 4 1 3 3 1 8 7 3 11 1 Combat Bots Only 10 | . 3 . 10 5 1 1 3 1 2 4 2 10 8 5 3 . 3 3 4 1 3 3 . 4 7 1 9 1 Max Kills in Single Turn 5 | 1 2 1 3 3 2 1 2 1 1 3 1 2 3 4 3 . 2 2 2 1 1 2 1 5 3 2 2 1 Gunslinging 1 | . . . . . . . 1 . . . . 1 1 . . . . 1 1 . . . . . . . . . Exploded 4 | . 1 . 3 3 . . . . 1 2 . 2 3 4 2 . 1 . . . . 2 . 3 3 . 1 . Melee 1 | . 1 . 1 1 . . . . . . . . . . . . . . . . 1 1 . 1 1 . . . Uniques/NPCs Destroyed . | . . . . . . . . . . . . . . . . . . . . . . . . . . . . . Combat | -11 -10 -10 -9 -9 -9 -7 -7 -7 -6 -6 -5 -5 -5 -5 -5 -4 -4 -4 -4 -4 -4 -3 -3 -2 -2 -2 -1 -1 -------- Run | Yrd Mat Min Mat Sto Rec Fac Low Low Fac Gar Fac Gar Fac Gar Fac Fac Gar Ext Cet Arc Hub Res Qua Res Tes Sec Acc Com Hostile Shots Fired 4594 | . 115 41 150 97 36 83 64 14 109 332 107 75 182 159 126 10 145 124 22 71 432 216 110 534 253 381 458 148 Missed 1594 | . 28 13 45 29 7 45 26 6 35 108 41 30 54 45 49 1 66 35 13 32 124 64 40 185 101 110 193 69 Damage Taken 58446 | . 743 424 1351 920 567 718 654 119 1357 3585 1553 872 3033 2190 1604 164 1435 2402 154 1511 6080 2882 862 6907 3417 5776 5860 1306 Core 5274 | . 102 47 148 79 58 5 89 11 151 241 142 124 410 123 144 20 168 153 29 . 535 115 7 467 237 246 1223 200 Absorbed by Shields 4512 | . . . . . . . . . . . . . . 182 . . 35 . 91 . 118 445 551 971 288 429 438 964 Reduced by Siege Mode 296 | . . . . . . . . . . . . . . . . . . . . . . . . 296 . . . . Redirected to Core 83 | . . . . . . . . . . . . . . . . . . . . . . . . . 39 44 . . Redirected to Shielding 507 | . . . . . . . . . . . 76 . 298 . . . . 40 . . . . . 93 . . . . Ignored by Resistances 2355 | . . . . . . . . . . 25 . . . . . . . . . 124 692 322 . 40 . 835 113 204 Regen/Repaired (Parts) 22370 | . . . 115 90 5 278 347 60 1021 2049 566 879 698 887 435 . 360 558 37 895 1714 1550 785 2593 3080 333 2935 100 Core Remaining (%) 45 | 100 . 40 . . 28 . . 85 . 53 . . . . 5 . . . . . 21 . 77 . . 33 . 11 Volleys Fired 1314 | 11 71 3 109 80 65 28 30 12 61 103 15 27 70 41 54 6 26 94 13 4 89 26 1 88 24 10 87 66 Largest 4 | 2 2 2 2 2 2 2 2 2 3 3 3 3 3 3 3 1 3 3 3 3 3 3 2 3 2 3 4 4 Hottest 391 | 40 65 40 68 78 76 76 76 61 98 144 72 116 133 114 133 5 197 147 106 153 308 265 75 345 340 300 391 283 Shots Fired 2774 | 22 123 6 216 123 112 56 60 23 170 272 23 81 147 87 89 6 42 168 31 10 228 62 2 209 25 18 265 98 Gun 1918 | 22 69 6 206 79 112 56 60 23 170 81 10 76 122 69 43 . 32 102 31 10 209 46 2 170 11 3 94 4 Cannon 697 | . 51 . 6 38 . . . . . 184 7 . . 4 23 . 2 30 . . 19 12 . 37 4 15 171 94 Launcher 56 | . 3 . 4 6 . . . . . 7 . 5 1 7 7 . 2 . . . . 2 . 2 10 . . . Special 103 | . . . . . . . . . . . 6 . 24 7 16 6 6 36 . . . 2 . . . . . . Kinetic 1576 | 22 120 6 199 88 79 24 46 23 129 185 7 27 27 14 29 . 32 94 18 4 99 33 2 156 7 9 93 4 Thermal 808 | . . . . . 25 . . . 16 58 10 49 95 59 37 . 2 19 . 2 97 25 . 37 4 7 172 94 Explosive 56 | . 3 . 4 6 . . . . . 7 . 5 1 7 7 . 2 . . . . 2 . 2 10 . . . Electromagnetic 231 | . . . 13 29 8 32 14 . 25 22 . . . . . . . 19 13 4 32 . . 14 4 2 . . Robot Hit Streak 24 | 6 6 1 15 11 23 24 7 10 17 17 13 17 12 11 17 4 5 22 7 11 15 6 . 19 10 6 14 12 Robot Miss Streak 9 | 3 4 5 5 3 2 3 3 1 4 9 1 1 6 3 3 1 2 4 2 1 5 5 . 5 1 1 6 1 Penetration Max 2 | . . . . . . . 1 . . . . 1 . . . . 1 2 1 . 1 1 . 1 . . . . Secondary Targets 31 | . . . 2 . . . 1 . . 1 . 5 6 1 . . 1 4 3 1 5 . . 1 . . . . Max Gunslinging Chain 2 | . . . 1 . . . 1 . . 1 . 1 2 1 . . 1 1 1 1 1 . . 1 . . . . Shots Hit Robots 1688 | 15 65 1 143 82 88 40 39 13 118 163 16 53 86 46 51 5 22 113 23 8 165 43 2 146 18 20 92 12 Core Hits 858 | 5 33 1 74 62 32 13 19 5 44 155 7 31 30 24 24 . 14 35 13 4 70 20 . 65 35 5 36 2 Critical Kills 36 | . . . 4 . . . . . 5 . . . . . 1 . . 8 2 1 1 1 . 8 . . 5 . Critical Parts Destroyed 39 | . . . 2 1 1 1 2 . 6 1 . . . . . . . 6 2 . 3 . . 9 . 4 1 . Critical Strikes 120 | . 2 . 7 1 1 1 2 . 13 1 2 3 8 1 4 . . 15 4 1 14 4 . 22 1 7 6 . Burn 17 | . . . . . . . . . . . 1 3 8 1 3 . . . . . 1 . . . . . . . Meltdown 7 | . . . . . . . . . . . . . . . . . . 1 . . . . . 1 . . 5 . Destroy 71 | . . . 3 . 1 1 2 . 13 1 . . . . 1 . . 14 4 1 4 2 . 20 . 3 1 . Blast 6 | . 2 . 1 . . . . . . . 1 . . . . . . . . . 2 . . . . . . . Smash 6 | . . . 3 1 . . . . . . . . . . . . . . . . . . . . . 2 . . Sever 11 | . . . . . . . . . . . . . . . . . . . . . 7 . . 1 1 2 . . Impale 2 | . . . . . . . . . . . . . . . . . . . . . . 2 . . . . . . Melee Attacks 198 | . . . 18 22 . . . . . 2 . . . . . . 5 25 . . 20 12 8 23 32 31 . . Impact 62 | . . . 18 22 . . . . . . . . . . . . . . . . . . . . . 22 . . Slashing 117 | . . . . . . . . . . 2 . . . . . . 5 25 . . 20 . 1 23 32 9 . . Piercing 19 | . . . . . . . . . . . . . . . . . . . . . . 12 7 . . . . . Sneak Attacks 23 | . . . 2 1 . . . . . 1 . . . . . . 3 . . . . . 2 2 4 8 . . Combat Hostiles 3 | . . . 1 . . . . . . 1 . . . . . . . . . . . . . . . 1 . . Follow-up Attacks . | . . . . . . . . . . . . . . . . . . . . . . . . . . . . . Damage Inflicted 55434 | 152 1021 19 3254 2228 1483 627 979 198 2106 5127 318 2323 2252 1968 2195 . 728 1833 671 210 5449 2006 165 7080 3635 1972 4767 668 Guns 25565 | 152 343 19 1950 839 1437 627 848 198 1890 1068 186 1441 1972 947 723 . 306 1358 671 201 3975 700 . 2879 12 33 736 54 Cannons 12615 | . 581 . 62 536 . . . . . 2547 132 . . 59 530 . 86 441 . . 529 248 . 1589 318 450 3893 614 Explosions 10377 | . 92 . 755 563 . . 131 . 216 1426 . 882 209 962 914 . 144 . . . . 510 . 1228 2138 69 138 . Melee 5862 | . . . 478 288 . . . . . 86 . . . . . . 192 . . . 615 456 165 1182 1038 1362 . . Ramming 1015 | . 5 . 9 2 46 . . . . . . . 71 . 28 . . 34 . 9 330 92 . 202 129 58 . . Kinetic 19607 | 152 924 19 1814 1070 965 316 725 198 1470 2656 132 540 279 141 630 . 306 1257 248 60 1739 538 . 2609 . 29 736 54 Thermal 16704 | . . . 45 147 354 . 131 . 338 1245 186 901 1693 865 795 . 86 441 . 55 2079 410 . 1589 318 519 3893 614 Explosive 9032 | . 92 . 710 416 . . . . . 861 . 882 209 962 742 . 144 . . . . 510 . 1228 2138 . 138 . Electromagnetic 3214 | . . . 198 305 118 311 123 . 298 279 . . . . . . . 101 423 86 686 . . 270 12 4 . . Impact 1497 | . . . 478 288 . . . . . . . . . . . . . . . . . . . . . 731 . . Slashing 3744 | . . . . . . . . . . 86 . . . . . . 192 . . . 615 . . 1182 1038 631 . . Piercing 621 | . . . . . . . . . . . . . . . . . . . . . . 456 165 . . . . . Highest Corruption 24 | . . 5 4 4 5 1 1 1 1 1 . . 2 12 17 . . 2 . . 6 . 3 8 20 24 4 . Average Corruption 5 | . . 4 4 4 4 1 1 1 1 1 . . 1 5 14 . . 1 . . 1 . 1 1 13 22 4 . Corruption Purged 13 | . . . . . . . . . . 1 . . 1 1 . . . 2 . . 7 . . . . 1 . . Corruption Blocked 16 | . . . . . . . . . . . . . . . . . . . . . . 1 . . . . 8 7 Effects 457 | . . 3 47 41 105 2 4 5 2 5 . . 2 14 94 . . 19 . . 1 . 5 6 37 46 19 . Message Errors 121 | . . . 14 12 28 1 . 1 . 3 . . 1 5 21 . . 5 . . . . . 3 13 10 4 . Matter Fused 103 | . . 1 11 7 26 . 1 1 . . . . 1 1 29 . . 3 . . 1 . 2 1 9 5 4 . Heat Flow Errors 45 | . . 1 5 3 12 . 1 . . . . . . 2 9 . . 2 . . . . . . 2 6 2 . Energy Discharges 50 | . . 1 3 5 12 1 . 1 . . . . . 1 7 . . 3 . . . . 3 2 3 6 2 . Parts Rejected 5 | . . . . . 1 . . . . . . . . 1 1 . . . . . . . . . 1 1 . . Parts Fused 9 | . . . 1 2 2 . . . . . . . . . 1 . . 1 . . . . . . 1 1 . . Data Loss (minor) 52 | . . . 9 4 10 . 1 . . . . . . 1 9 . . 5 . . . . . . 5 5 3 . Data Loss (major) 23 | . . . 2 3 7 . . 1 1 1 . . . 1 2 . . . . . . . . . 2 2 1 . Misfires 7 | . . . 1 1 2 . . . . . . . . . 3 . . . . . . . . . . . . . Alerts 12 | . . . 1 2 3 . 1 . . . . . . 2 1 . . . . . . . . . . 1 1 . Misdirections 18 | . . . . . . . . . . . . . . . 9 . . . . . . . . . 1 8 . . Weapon Failures 12 | . . . . 2 2 . . 1 1 1 . . . . 2 . . . . . . . . . . 1 2 . Overload Shots 64 | . . . . . . . . . . . 2 5 27 . 5 . . . . . 16 . . . . . 6 3 Effects 12 | . . . . . . . . . . . 1 1 4 . 1 . . . . . 2 . . . . . 1 2 Energy Bleed 4 | . . . . . . . . . . . . 1 . . . . . . . . 2 . . . . . . 1 Heat Surge 5 | . . . . . . . . . . . 1 . 3 . 1 . . . . . . . . . . . . . Short Circuit 3 | . . . . . . . . . . . . . 1 . . . . . . . . . . . . . 1 1 Overflow Damage 2633 | . 10 . 114 118 . . 32 . 30 86 . 15 21 7 165 . . 24 . . 54 95 105 321 252 724 460 . Projectiles 591 | . 10 . . 5 . . . . . 16 . . . . 41 . . 24 . . . . . 34 . 40 421 . Explosions 450 | . . . 8 . . . 32 . 30 24 . 15 18 7 124 . . . . . . 49 . 98 6 . 39 . Melee 1592 | . . . 106 113 . . . . . 46 . . 3 . . . . . . . 54 46 105 189 246 684 . . Knockbacks 50 | . 7 . 2 2 . . . . . 17 3 . 2 . 5 . . 1 . . . . . 3 4 4 . . Impact 14 | . . . 2 . . . . . . . . . 2 . . . . 1 . . . . . 3 3 3 . . Kinetic 33 | . 7 . . 2 . . . . . 16 3 . . . 5 . . . . . . . . . . . . . Secondary 3 | . . . . . . . . . . 1 . . . . . . . . . . . . . . 1 1 . . Self-Inflicted Damage 973 | . . . 65 51 . . 40 . . 241 . 22 208 23 57 . . . . . 45 19 . 91 25 86 . . Shots 21 | . . . 2 2 . . 1 . . 6 . 1 3 1 1 . . . . . . . . 1 2 1 . . Rammed 40 | . 7 . 2 1 3 . . . . . . . 3 . . . . . . . 11 5 . . 4 4 . . Targets Rammed 69 | . 8 . 2 1 3 . . . . . . . 3 . 1 . . 9 . 1 22 5 . 5 5 4 . . Kicked 26 | . . . . . . . . . . . . . . . 1 . . 9 . 1 10 . . 5 . . . . Crushed 3 | . 1 . . . . . . . . . . . . . . . . . . . 1 . . . 1 . . . Highest Temperature 594 | . 33 171 272 207 274 72 120 . 560 355 219 . 404 195 189 . 204 96 . 48 439 324 . 378 264 594 178 178 Average Temperature 87 | . 11 90 31 52 70 17 36 . 153 109 74 . 92 44 82 . 82 31 . 18 113 92 . 125 80 128 118 94 Received Heat Transfer 8915 | . 90 . 510 315 186 57 306 . 539 528 360 162 474 210 306 . 93 333 . 178 1379 512 35 548 148 1209 273 164 Effects 19 | . . . . 1 . . . . 1 2 . . 2 . . . . . . . 3 3 . 2 . 5 . . Shutdowns 6 | . . . . . . . . . 1 . . . 1 . . . . . . . 1 . . 1 . 2 . . Energy Bleed 2 | . . . . 1 . . . . . 1 . . . . . . . . . . . . . . . . . . Interference 3 | . . . . . . . . . . . . . . . . . . . . . . 3 . . . . . . Matter Decay 2 | . . . . . . . . . . . . . 1 . . . . . . . . . . . . 1 . . Short Circuit 2 | . . . . . . . . . . . . . . . . . . . . . 1 . . 1 . . . . Damage (minor) 2 | . . . . . . . . . . 1 . . . . . . . . . . 1 . . . . . . . Damage (major) 2 | . . . . . . . . . . . . . . . . . . . . . . . . . . 2 . . Siege Activations 2 | . . . . . . . . . . . . . . . . . . . . . . . . 2 . . . . Total Turns 62 | . . . . . . . . . . . . . . . . . . . . . . . . 62 . . . . Longest Duration 39 | . . . . . . . . . . . . . . . . . . . . . . . . 39 . . . . Robots Corrupted 18 | . . . 2 1 . 1 . . . . . . . . . . . . 1 . 3 2 . 2 . 6 . . Combat Hostiles 9 | . . . 2 . . 1 . . . . . . . . . . . . 1 . 3 . . . . 2 . . Parts Fried 34 | . . . 1 3 . 2 . . . 1 . . . . . . . . 2 . 4 3 . 8 . 10 . . Impact Corruptions 28 | . . . 3 1 . . . . . . . . 1 . . . . . . . 3 3 . 3 1 13 . . Robots Melted 13 | . . . . . . . . . . . . 1 4 . 1 . . 1 . . . . . 1 . . 5 . Combat Hostiles 9 | . . . . . . . . . . . . 1 3 . 1 . . 1 . . . . . . . . 3 . Parts Melted 53 | . . . . . . 1 . . . . . 6 20 3 8 . . 1 . . 2 . . 4 . . 8 . Heat Transferred 20276 | . . . 50 188 777 . 200 . 250 1525 525 1901 4300 1887 1680 . 74 481 . 74 1876 222 . 1073 100 50 2809 234 Parts Sabotaged . | . . . . . . . . . . . . . . . . . . . . . . . . . . . . . Parts Stolen . | . . . . . . . . . . . . . . . . . . . . . . . . . . . . . Parts Stripped . | . . . . . . . . . . . . . . . . . . . . . . . . . . . . . Power Chain Reactions 16 | . . . 1 1 . . 2 . 3 8 . . . . . . . . . . . . . . . 1 . . Alert | -11 -10 -10 -9 -9 -9 -7 -7 -7 -6 -6 -5 -5 -5 -5 -5 -4 -4 -4 -4 -4 -4 -3 -3 -2 -2 -2 -1 -1 ------- Run | Yrd Mat Min Mat Sto Rec Fac Low Low Fac Gar Fac Gar Fac Gar Fac Fac Gar Ext Cet Arc Hub Res Qua Res Tes Sec Acc Com Peak Influence 1876 | 15 331 5 473 614 314 435 . . 266 1876 1021 1273 969 799 680 301 570 1091 798 547 659 736 416 930 962 676 906 724 Initial 984 | . 9 . 1 172 231 350 . . . 127 984 691 667 299 403 301 210 298 548 239 173 342 254 119 334 451 158 579 Average 402 | 5 142 1 280 477 36 334 . . 95 956 964 979 456 601 253 301 328 513 713 453 481 485 259 378 624 473 403 634 Maximum Alert Level 5 | . 1 . 2 2 1 2 . . 1 5 3 4 3 3 2 1 2 3 3 2 2 3 2 3 3 2 3 3 Low Security (%) 28 | 100 70 100 34 9 92 . . . 84 2 . . . . 44 . . 5 . . 2 . 40 25 . 3 22 . Level 1 25 | . 29 . 31 3 7 96 . . 15 16 . . 50 21 39 100 72 35 . 18 10 13 38 31 18 30 32 . Level 2 31 | . . . 34 86 . 3 . . . 17 . 19 38 22 15 . 27 35 53 81 87 86 21 32 36 65 26 62 Level 3 11 | . . . . . . . . . . 17 100 41 11 55 . . . 23 46 . . . . 10 45 . 18 37 Level 4 3 | . . . . . . . . . . 38 . 38 . . . . . . . . . . . . . . . . Level 5 . | . . . . . . . . . . 7 . . . . . . . . . . . . . . . . . . High Security . | . . . . . . . . . . . . . . . . . . . . . . . . . . . . . Max Security . | . . . . . . . . . . . . . . . . . . . . . . . . . . . . . Squads Dispatched 93 | . 1 . 6 4 . 2 . . 4 . 1 . 10 . 4 . . 3 . . 8 8 2 12 15 6 6 1 Investigation 20 | . . . 3 1 . . . . . . . . 3 . 1 . . 2 . . 1 4 . 1 3 . 1 . Extermination 19 | . . . . . . 1 . . 2 . . . 1 . 2 . . . . . 3 . . 3 2 2 2 1 Reinforcement 34 | . 1 . 3 . . 1 . . 2 . . . 4 . 1 . . 1 . . 1 4 1 6 3 4 2 . Assault 11 | . . . . 3 . . . . . . 1 . . . . . . . . . 2 . 1 2 1 . 1 . Garrison 9 | . . . . . . . . . . . . . 2 . . . . . . . 1 . . . 6 . . . Intercept . | . . . . . . . . . . . . . . . . . . . . . . . . . . . . . Searches Triggered 1 | . . . . . . . . . . . . . . . . . . . . . . . . . . 1 . . Construction Impeded 6 | . . . . . . 1 . . . . . . . . . . . . . . 1 1 . 1 . 1 1 . Haulers Reinforced 4 | . . . . . . . . . . . . . 1 . . . . . . . . 2 . . 1 . . . Active Scanning Responses . | . . . . . . . . . . . . . . . . . . . . . . . . . . . . . Cargo Convoy Interrupts . | . . . . . . . . . . . . . . . . . . . . . . . . . . . . . Stealth | -11 -10 -10 -9 -9 -9 -7 -7 -7 -6 -6 -5 -5 -5 -5 -5 -4 -4 -4 -4 -4 -4 -3 -3 -2 -2 -2 -1 -1 --------- Run | Yrd Mat Min Mat Sto Rec Fac Low Low Fac Gar Fac Gar Fac Gar Fac Fac Gar Ext Cet Arc Hub Res Qua Res Tes Sec Acc Com Distress Signals 34 | . 1 . 3 1 1 . . . . . 2 . 1 . . . . 2 2 . 2 9 5 1 . 2 2 . Communications Jammed 12 | . . . . . . . . . . . . . . . . . . . . . 5 . . . . . . 7 Distress Signals 12 | . . . . . . . . . . . . . . . . . . . . . 5 . . . . . . 7 Times Spotted 927 | . 23 22 53 40 9 7 12 1 15 45 31 17 55 25 36 2 25 37 10 26 44 42 34 71 39 74 113 19 Peak Tracking Total 19 | . 5 17 8 7 4 3 5 1 3 5 19 8 10 5 5 2 9 5 5 19 8 12 8 8 13 10 8 5 Tactical Retreats 109 | . . 4 5 . 1 1 1 . 1 8 3 1 12 1 7 . 3 1 1 . 4 13 10 10 10 2 9 1 Traps | -11 -10 -10 -9 -9 -9 -7 -7 -7 -6 -6 -5 -5 -5 -5 -5 -4 -4 -4 -4 -4 -4 -3 -3 -2 -2 -2 -1 -1 ------- Run | Yrd Mat Min Mat Sto Rec Fac Low Low Fac Gar Fac Gar Fac Gar Fac Fac Gar Ext Cet Arc Hub Res Qua Res Tes Sec Acc Com Traps Triggered 47 | . . . 2 . . 1 . . . 3 2 . 8 3 3 . 2 1 . . 4 6 2 5 . 2 2 1 Indirectly . | . . . . . . . . . . . . . . . . . . . . . . . . . . . . . Trap Hack Attempts . | . . . . . . . . . . . . . . . . . . . . . . . . . . . . . Triggered . | . . . . . . . . . . . . . . . . . . . . . . . . . . . . . Disarmed 5 | . . . . 3 . . . . . . . . . . . . . 2 . . . . . . . . . . Reprogrammed 6 | . . . . . . . . . . . . . . . . . . . . . . . . . . 6 . . Reused 5 | . . . . . . . . . . . . . . . . . . . . . . . . . . 5 . . Traps Extracted . | . . . . . . . . . . . . . . . . . . . . . . . . . . . . . Installed . | . . . . . . . . . . . . . . . . . . . . . . . . . . . . . Triggered 7 | . . . . . . . . . . . . . . . 2 . . . . . . . . . . 5 . . Objects Rigged 2 | . . . . . . . . . . . . . . . . . . . . . . . . . 2 . . . Exploded 2 | . . . . . . . . . . . . . . . . . . . . . . . . . 2 . . . Machines | -11 -10 -10 -9 -9 -9 -7 -7 -7 -6 -6 -5 -5 -5 -5 -5 -4 -4 -4 -4 -4 -4 -3 -3 -2 -2 -2 -1 -1 ---------- Run | Yrd Mat Min Mat Sto Rec Fac Low Low Fac Gar Fac Gar Fac Gar Fac Fac Gar Ext Cet Arc Hub Res Qua Res Tes Sec Acc Com Machines Disabled 97 | . 1 . 6 3 2 . . . 10 6 . 2 7 2 7 . 2 6 . 2 5 1 6 4 9 8 6 2 Max in Single Turn 6 | . 1 . 1 1 . . . . 6 1 . 1 2 1 3 . 1 1 . 1 1 1 1 1 2 1 1 1 Garrison Access 7 | . . . . 1 . . . . . . . . . . . . . . . . 1 1 1 1 . . 2 . Garrison Relay 9 | . . . . . . . . . . 4 . 2 . 1 . . 2 . . . . . . . . . . . Phase Generator 1 | . . . . . . . . . . . . . . . . . 1 . . . . . . . . . . . Network Hub 3 | . . . . . . . . . . . . . . . . . . . . . 3 . . . . . . . Energy Cycler 1 | . . . . . . . . . . . . . . . . . . 1 . . . . . . . . . . Machines Repaired . | . . . . . . . . . . . . . . . . . . . . . . . . . . . . . Machines Dismantled . | . . . . . . . . . . . . . . . . . . . . . . . . . . . . . Machines Sabotaged 1 | . . . . . . . . . . . . . . . . . . . . . 1 . . . . . . . Overloaded Fab Kills . | . . . . . . . . . . . . . . . . . . . . . . . . . . . . . Hacking | -11 -10 -10 -9 -9 -9 -7 -7 -7 -6 -6 -5 -5 -5 -5 -5 -4 -4 -4 -4 -4 -4 -3 -3 -2 -2 -2 -1 -1 --------- Run | Yrd Mat Min Mat Sto Rec Fac Low Low Fac Gar Fac Gar Fac Gar Fac Fac Gar Ext Cet Arc Hub Res Qua Res Tes Sec Acc Com Machines Accessed 146 | . 8 . 13 12 14 1 . 1 4 1 3 2 18 . 5 2 2 10 2 . 6 8 8 6 5 7 8 . Terminals 91 | . 7 . 8 9 6 . . . 1 1 1 2 9 . 2 . 2 7 2 . 6 4 5 5 3 6 5 . Fabricators 11 | . . . . . . . . . 1 . 1 . 4 . 3 . . . . . . 2 . . . . . . Repair Stations 9 | . . . 1 1 . . . . . . . . 1 . . 1 . 1 . . . 1 2 . 1 . . . Recycling Units 17 | . 1 . 2 1 7 1 . . 1 . . . 1 . . . . 2 . . . . . . . . 1 . Scanalyzers 4 | . . . 2 . . . . . . . . . . . . . . . . . . . 1 . . 1 . . Garrison Access 12 | . . . . 1 . . . . 1 . 1 . 3 . . 1 . . . . . 1 . 1 1 . 2 . Total Hacks 437 | . 20 . 50 26 45 4 . 1 13 3 5 5 33 . 16 2 5 29 5 . 14 20 28 23 34 28 28 . Successful 217 | . 10 . 32 15 33 2 . 1 7 1 2 1 15 . 15 2 1 14 2 . 5 6 11 9 16 12 5 . Failed 220 | . 10 . 18 11 12 2 . . 6 2 3 4 18 . 1 . 4 15 3 . 9 14 17 14 18 16 23 . Catastrophic 45 | . 1 . 3 1 . . . . . 1 1 1 2 . . . 3 2 . . . 6 5 3 4 3 9 . Database Lockouts . | . . . . . . . . . . . . . . . . . . . . . . . . . . . . . Manual 233 | . 19 . 28 15 35 2 . . 7 1 3 2 20 . 6 1 . 12 1 . 12 4 9 19 22 10 5 . Terminals 285 | . 18 . 33 20 17 . . . 5 3 2 5 16 . 2 . 5 20 5 . 14 12 16 18 28 24 22 . Fabricators 31 | . . . . . . . . . 3 . 2 . 8 . 14 . . . . . . 4 . . . . . . Repair Stations 26 | . . . 4 2 . . . . . . . . 3 . . 1 . 1 . . . 3 11 . 1 . . . Recycling Units 56 | . 2 . 5 2 26 4 . . 2 . . . 3 . . . . 8 . . . . . . . . 4 . Scanalyzers 13 | . . . 8 . . . . . . . . . . . . . . . . . . . 1 . . 4 . . Garrison Access 23 | . . . . 2 . . . . 3 . 1 . 3 . . 1 . . . . . 1 . 5 5 . 2 . Terminal Hacks 57 | . 1 . 5 5 4 . . 1 1 1 . 1 3 . 1 . 1 6 2 . 1 1 1 3 8 9 2 . Record 3 | . . . . . . . . . . . . . . . . . . . 1 . 1 . . . . 1 . . Part Schematic 2 | . . . 2 . . . . . . . . . . . . . . . . . . . . . . . . . Robot Schematic 3 | . 1 . . 1 . . . . . . . . . . 1 . . . . . . . . . . . . . Open Door 8 | . . . . 3 . . . 1 . . . . . . . . . 3 1 . . . . . . . . . Level Access Points 2 | . . . . . . . . . . . . . . . . . . . . . . . . . 1 1 . . Branch Access Points 3 | . . . . . . . . . . . . . . . . . . . . . . . . 1 1 . 1 . Emergency Access Points 2 | . . . . . . . . . . 1 . 1 . . . . . . . . . . . . . . . . Terminal Index 2 | . . . . . . . . . . . . . 1 . . . . . . . . . . . . . 1 . Unreport Threat 16 | . . . 2 . 2 . . . . . . . 2 . . . . 2 . . . 1 1 2 2 2 . . Locate Traps 1 | . . . . . . . . . 1 . . . . . . . . . . . . . . . . . . . Disarm Traps 2 | . . . . 1 . . . . . . . . . . . . . 1 . . . . . . . . . . Reprogram Traps 2 | . . . . . . . . . . . . . . . . . . . . . . . . . . 2 . . Dispatch Records 1 | . . . . . . . . . . . . . . . . . . . . . . . . . 1 . . . Recall Reinforcements 1 | . . . . . . . . . . . . . . . . . . . . . . . . . 1 . . . Zone Layout 5 | . . . 1 . . . . . . . . . . . . . . . . . . . . . 1 3 . . Garrison Registry 1 | . . . . . . . . . . . . . . . . . 1 . . . . . . . . . . . Protovariant Controls 1 | . . . . . . . . . . . . . . . . . . . . . . . . . 1 . . . Release Object 2 | . . . . . 2 . . . . . . . . . . . . . . . . . . . . . . . Fabricator Hacks 14 | . . . . . . . . . 1 . 1 . 1 . 9 . . . . . . 2 . . . . . . Network Status 3 | . . . . . . . . . 1 . 1 . . . 1 . . . . . . . . . . . . . Load Schematic 5 | . . . . . . . . . . . . . . . 4 . . . . . . 1 . . . . . . Build 6 | . . . . . . . . . . . . . 1 . 4 . . . . . . 1 . . . . . . Repair Station Hacks 11 | . . . 4 2 . . . . . . . . . . . . . . . . . . 5 . . . . . Scan Component 6 | . . . 2 1 . . . . . . . . . . . . . . . . . . 3 . . . . . Repair 5 | . . . 2 1 . . . . . . . . . . . . . . . . . . 2 . . . . . Recycling Unit Hacks 15 | . 1 . 1 1 6 . . . . . . . 2 . . . . 4 . . . . . . . . . . Retrieve Matter 1 | . . . . . . . . . . . . . 1 . . . . . . . . . . . . . . . Retrieve Components 14 | . 1 . 1 1 6 . . . . . . . 1 . . . . 4 . . . . . . . . . . Scanalyzer 11 | . . . 8 . . . . . . . . . . . . . . . . . . . 1 . . 2 . . Insert Component 7 | . . . 4 . . . . . . . . . . . . . . . . . . . 1 . . 2 . . Analyze 4 | . . . 4 . . . . . . . . . . . . . . . . . . . . . . . . . Garrison Access Hacks 10 | . . . . 1 . . . . 1 . 1 . 2 . . 1 . . . . . 1 . 1 . . 2 . Unlock Access 5 | . . . . . . . . . 1 . 1 . 2 . . 1 . . . . . . . . . . . . Seal Access 4 | . . . . 1 . . . . . . . . . . . . . . . . . 1 . . . . 2 . Coupler Status 1 | . . . . . . . . . . . . . . . . . . . . . . . . 1 . . . . Unauthorized Hacks 99 | . 8 . 14 6 23 2 . . 4 . . . 7 . 5 1 . 4 . . 4 2 4 5 8 1 1 . Terminals 59 | . 7 . 13 6 7 . . . 2 . . . 2 . . . . 1 . . 4 2 4 2 7 1 1 . Track 10 | . . . 2 2 . . . . 1 . . . . . . . . . . . . . 3 . 2 . . . Assimilate 4 | . . . 2 . . . . . . . . . . . . . . . . . 2 . . . . . . . Botnet 22 | . 2 . 2 1 2 . . . 1 . . . 2 . . . . 1 . . 1 2 1 2 3 1 1 . Detonate 1 | . . . . . . . . . . . . . . . . . . . . . . . . . 1 . . . Operators 3 | . . . 1 1 . . . . . . . . . . . . . . . . . . . . 1 . . . Skim 18 | . 5 . 6 2 5 . . . . . . . . . . . . . . . . . . . . . . . Sabotage 1 | . . . . . . . . . . . . . . . . . . . . . 1 . . . . . . . Fabricators 9 | . . . . . . . . . 1 . . . 3 . 5 . . . . . . . . . . . . . Report 1 | . . . . . . . . . . . . . . . 1 . . . . . . . . . . . . . Liberate 5 | . . . . . . . . . 1 . . . 2 . 2 . . . . . . . . . . . . . Fabnet 2 | . . . . . . . . . . . . . 1 . 1 . . . . . . . . . . . . . Recompile 1 | . . . . . . . . . . . . . . . 1 . . . . . . . . . . . . . Repair Stations 3 | . . . . . . . . . . . . . 1 . . 1 . 1 . . . . . . . . . . Mechanics 2 | . . . . . . . . . . . . . . . . 1 . 1 . . . . . . . . . . Patch 1 | . . . . . . . . . . . . . 1 . . . . . . . . . . . . . . . Recycling Units 23 | . 1 . 1 . 16 2 . . 1 . . . . . . . . 2 . . . . . . . . . . Reject 13 | . 1 . 1 . 7 1 . . 1 . . . . . . . . 2 . . . . . . . . . . Recyclers 2 | . . . . . 1 1 . . . . . . . . . . . . . . . . . . . . . . Mask 6 | . . . . . 6 . . . . . . . . . . . . . . . . . . . . . . . Tunnel 2 | . . . . . 2 . . . . . . . . . . . . . . . . . . . . . . . Scanalyzers . | . . . . . . . . . . . . . . . . . . . . . . . . . . . . . Garrison Access 5 | . . . . . . . . . . . . . 1 . . . . . . . . . . 3 1 . . . Redirect 1 | . . . . . . . . . . . . . . . . . . . . . . . . 1 . . . . Reprogram 3 | . . . . . . . . . . . . . 1 . . . . . . . . . . 1 1 . . . Intercept 1 | . . . . . . . . . . . . . . . . . . . . . . . . 1 . . . . Data Cores Recovered . | . . . . . . . . . . . . . . . . . . . . . . . . . . . . . Used . | . . . . . . . . . . . . . . . . . . . . . . . . . . . . . Hacking Detections 108 | . 8 . 11 7 13 1 . . 4 1 2 2 13 . 2 . 2 6 . . 4 5 5 6 5 5 6 . Full Trace Events 21 | . 1 . 2 1 5 . . . . 1 . 1 2 . . . 1 2 . . . 1 . 1 2 . 1 . Feedback Events 3 | . . . . . . . . . . . . . 1 . . . . . . . . . . . 1 . 1 . Corruption 3 | . . . . . . . . . . . . . 1 . . . . . . . . . . . 1 . 1 . Feedback Blocked . | . . . . . . . . . . . . . . . . . . . . . . . . . . . . . Robot Schematics Acquired 3 | . 1 . . 1 . . . . . . . . . . 1 . . . . . . . . . . . . . Robots Built 15 | . . . . . . . . . . . . . 2 . 12 . . . . . . 1 . . . . . . Authchips 5 | . . . . . . . . . . . . . 1 . 4 . . . . . . . . . . . . . Time 247 | . . . . . . . . . . . . . 44 . 176 . . . . . . 27 . . . . . . Total Robot Build Rating 57 | . . . . . . . . . . . . . 8 . 48 . . . . . . 1 . . . . . . Part Schematics Acquired 13 | . . . 6 . . . . . . . . . . . . . . . . . . . . . 5 2 . . Parts Built . | . . . . . . . . . . . . . . . . . . . . . . . . . . . . . Authchips . | . . . . . . . . . . . . . . . . . . . . . . . . . . . . . Time . | . . . . . . . . . . . . . . . . . . . . . . . . . . . . . Total Part Build Rating . | . . . . . . . . . . . . . . . . . . . . . . . . . . . . . Parts Repaired 5 | . . . 2 1 . . . . . . . . . . . . . . . . . . 2 . . . . . Time 198 | . . . 58 32 . . . . . . . . . . . . . . . . . . 108 . . . . . Parts Recycled . | . . . . . . . . . . . . . . . . . . . . . . . . . . . . . Recycled Matter . | . . . . . . . . . . . . . . . . . . . . . . . . . . . . . Retrieved Matter . | . . . . . . . . . . . . . . . . . . . . . . . . . . . . . Retrieved Components 31 | . 1 . 2 10 8 . . . . . . . 2 . . . . 8 . . . . . . . . . . Parts Scanalyzed 4 | . . . 4 . . . . . . . . . . . . . . . . . . . . . . . . . Part Schematics Acquired 4 | . . . 4 . . . . . . . . . . . . . . . . . . . . . . . . . Parts Damaged . | . . . . . . . . . . . . . . . . . . . . . . . . . . . . . Bothacking | -11 -10 -10 -9 -9 -9 -7 -7 -7 -6 -6 -5 -5 -5 -5 -5 -4 -4 -4 -4 -4 -4 -3 -3 -2 -2 -2 -1 -1 ------------ Run | Yrd Mat Min Mat Sto Rec Fac Low Low Fac Gar Fac Gar Fac Gar Fac Fac Gar Ext Cet Arc Hub Res Qua Res Tes Sec Acc Com Used RIF Installer 1 | . . . . . . . . . . 1 . . . . . . . . . . . . . . . . . . Robots Hacked 35 | . . . . . . . . . . . 4 . 10 3 4 2 6 5 . . . 1 . . . . . . Non-combat 17 | . . . . . . . . . . . 4 . 1 . 4 2 . 5 . . . 1 . . . . . . Combat 18 | . . . . . . . . . . . . . 9 3 . . 6 . . . . . . . . . . . Robot Hacks Applied 49 | . . . . . . . . . . . 4 . 18 3 7 4 6 5 . . . 2 . . . . . . start_evac 1 | . . . . . . . . . . . . . . . 1 . . . . . . . . . . . . . map_walls 1 | . . . . . . . . . . . . . . . . . . 1 . . . . . . . . . . find_fabricator 1 | . . . . . . . . . . . . . . . . 1 . . . . . . . . . . . . drop_inventory 6 | . . . . . . . . . . . 1 . . . 1 2 . 2 . . . . . . . . . . purge_threat 7 | . . . . . . . . . . . . . 5 . 2 . . . . . . . . . . . . . find_terminals 1 | . . . . . . . . . . . . . 1 . . . . . . . . . . . . . . . reprogram_traps 1 | . . . . . . . . . . . . . . . 1 . . . . . . . . . . . . . recall_investigation 1 | . . . . . . . . . . . . . 1 . . . . . . . . . . . . . . . map_route 4 | . . . . . . . . . . . 1 . . . 2 . . . . . . 1 . . . . . . spike_heat 1 | . . . . . . . . . . . . . 1 . . . . . . . . . . . . . . . amplify_resonance 9 | . . . . . . . . . . . 1 . 2 1 . . 3 1 . . . 1 . . . . . . disable_weapons 1 | . . . . . . . . . . . . . 1 . . . . . . . . . . . . . . . go_dormant 1 | . . . . . . . . . . . . . 1 . . . . . . . . . . . . . . . overwrite_iff 8 | . . . . . . . . . . . . . 5 2 . . 1 . . . . . . . . . . . streamctrl_high 2 | . . . . . . . . . . . . . . . . . 2 . . . . . . . . . . . formatsys_low 4 | . . . . . . . . . . . 1 . 1 . . 1 . 1 . . . . . . . . . . Relay Couplers Released 39 | . . . . . . . . . . 16 . 8 . 5 . . 7 . . . . . 1 2 . . . . Machine Destruction 39 | . . . . . . . . . . 16 . 8 . 5 . . 7 . . . . . 1 2 . . . . Attached 17 | . . . . . . . . . . 3 1 . 4 1 2 1 3 1 . . . 1 . . . . . . Fabnet Peak Effective % . | . . . . . . . . . . . . . . . . . . . . . . . . . . . . . Robots Rewired 31 | . . . . 1 10 . . . . . . . . . . . . 20 . . . . . . . . . . Allies Hacked 2 | . . . . . . . . . . . . . . 1 1 . . . . . . . . . . . . . Hacks Repelled . | . . . . . . . . . . . . . . . . . . . . . . . . . . . . . Allies | -11 -10 -10 -9 -9 -9 -7 -7 -7 -6 -6 -5 -5 -5 -5 -5 -4 -4 -4 -4 -4 -4 -3 -3 -2 -2 -2 -1 -1 -------- Run | Yrd Mat Min Mat Sto Rec Fac Low Low Fac Gar Fac Gar Fac Gar Fac Fac Gar Ext Cet Arc Hub Res Qua Res Tes Sec Acc Com Total Allies 82 | . . . 1 3 10 . . . . . 1 . 10 2 17 1 3 25 5 . 1 1 . . 2 . . . Largest Group 17 | . . . 1 2 10 3 3 . . . 1 . 4 1 12 4 4 17 14 13 1 1 . . 2 . . . Highest-Rated Group 828 | . . . 10 62 122 29 29 . . . 21 . 172 29 240 83 94 710 828 828 26 14 . . 133 . . . Highest-Rated Ally 152 | . . . 10 31 21 11 11 . . . 21 . 54 29 54 23 47 152 152 96 26 14 . . 69 . . . Total Orders 23 | . . . . . 8 2 . . . . 1 . . . . . . 7 . . 1 4 . . . . . . STAY 10 | . . . . . 5 1 . . . . . . . . . . . 3 . . 1 . . . . . . . FOLLOW 6 | . . . . . 2 1 . . . . . . . . . . . 3 . . . . . . . . . . AID 3 | . . . . . . . . . . . . . . . . . . . . . . 3 . . . . . . DROP 1 | . . . . . . . . . . . . . . . . . . 1 . . . . . . . . . . COLLECT 2 | . . . . . 1 . . . . . 1 . . . . . . . . . . . . . . . . . EXPLORE 1 | . . . . . . . . . . . . . . . . . . . . . . 1 . . . . . . Ally Attacks 468 | . . . . 43 25 . . . . . . . 42 3 36 . 11 204 36 62 . . . . 6 . . . Total Damage 12156 | . . . . 611 369 . . . . . . . 1018 61 782 . 235 5139 741 2996 . . . . 204 . . . Kills 79 | . . . . 7 3 . . . . . . . 9 . 6 . 1 34 5 14 . . . . . . . . Allies Corrupted 2 | . . . . . . . . . . . . . . . 2 . . . . . . . . . . . . . Allies Melted 4 | . . . . . 1 . . . . . . . . . . . . 1 . 2 . . . . . . . . Intel | -11 -10 -10 -9 -9 -9 -7 -7 -7 -6 -6 -5 -5 -5 -5 -5 -4 -4 -4 -4 -4 -4 -3 -3 -2 -2 -2 -1 -1 ------- Run | Yrd Mat Min Mat Sto Rec Fac Low Low Fac Gar Fac Gar Fac Gar Fac Fac Gar Ext Cet Arc Hub Res Qua Res Tes Sec Acc Com Robot Analysis Total . | . . . . . . . . . . . . . . . . . . . . . . . . . . . . . Derelict Logs Recovered 3 | . . . . . . . 2 1 . . . . . . . . . . . . . . . . . . . . Drone Launches 2 | . . . . . . . . . . . . . . . . . . . . . . 2 . . . . . . Drone Recoveries . | . . . . . . . . . . . . . . . . . . . . . . . . . . . . . Exploration | -11 -10 -10 -9 -9 -9 -7 -7 -7 -6 -6 -5 -5 -5 -5 -5 -4 -4 -4 -4 -4 -4 -3 -3 -2 -2 -2 -1 -1 ------------- Run | Yrd Mat Min Mat Sto Rec Fac Low Low Fac Gar Fac Gar Fac Gar Fac Fac Gar Ext Cet Arc Hub Res Qua Res Tes Sec Acc Com Turns Passed 35991 | 77 1260 118 3147 1786 4107 771 922 803 1646 2210 547 517 915 867 2123 191 755 3094 446 386 1804 1382 690 1594 1002 819 1398 614 Spaces Moved 22142 | 61 790 207 1293 572 1214 683 615 1377 712 843 399 360 1530 187 1149 152 554 1549 245 159 693 1490 682 880 787 738 1697 524 Core 202 | 61 141 . . . . . . . . . . . . . . . . . . . . . . . . . . . Treads 9659 | . 12 . 1263 572 602 . . . 442 430 299 153 1362 103 52 . . 690 . 109 119 1203 682 323 335 738 170 . Legs 5312 | . 637 8 . . 612 363 . . 15 57 . . 168 28 902 152 85 859 245 50 558 . . 544 29 . . . Wheels . | . . . . . . . . . . . . . . . . . . . . . . . . . . . . . Hover 2742 | . . . . . . 57 39 . . 178 . . . . . . 469 . . . 16 287 . . . . 1224 472 Flight 3872 | . . 199 30 . . 263 576 1377 255 178 100 207 . 56 195 . . . . . . . . 13 423 . . . Fastest Speed 34 | 50 50 37 34 240 240 58 65 49 49 117 53 38 38 38 47 113 51 51 124 124 71 71 71 71 71 80 55 58 Average Speed 112 | 50 124 43 184 240 295 77 74 52 150 140 120 38 38 138 130 113 62 138 154 149 155 72 71 87 79 82 66 67 Slowest Speed 552 | 50 190 260 240 240 542 197 214 65 230 186 293 53 137 235 552 113 113 325 247 247 205 135 71 166 138 138 158 122 Overloaded Moves . | . . . . . . . . . . . . . . . . . . . . . . . . . . . . . Propulsion Burnouts . | . . . . . . . . . . . . . . . . . . . . . . . . . . . . . Robots Hopped 12 | . . . . . . 2 . . . . 7 2 . . . . . . . . . . . . 1 . . . Cave-ins Triggered 1 | . . . . . . . . . . . . . . . . . . . . . . . . . . . . 1 Teleports 107 | . . . . . . . . . . . . . . . . . . . . . . . 2 1 . 23 59 22 Microwarps 20 | . . . . . . . . . . . . . . . . . . . . . . . . . . . 18 2 Exploration Rate (%) 53 | 4 98 59 87 66 98 8 66 97 13 77 15 43 47 40 27 4 47 97 79 94 45 51 78 28 73 42 42 20 Regions Visited 28 Branch Regions 13 Pre-discovered Areas 8 | . 1 . 2 . 5 . . . . . . . . . . . . . . . . . . . . . . . Known Exits Taken 15 | . . 1 1 1 1 1 . . 1 . 1 . 1 . . 1 . . . . 1 1 1 1 . 1 1 . Unknown Exits Taken 9 | 1 1 . . . . . 1 1 . . . . . . 1 . . 1 1 1 . . . . 1 . . . Scrap Searched 7 | . . . . . . . 2 5 . . . . . . . . . . . . . . . . . . . . Spaces Dug 227 | . . . 3 23 . . . 3 . . 2 . 7 10 29 . . 2 . . 1 1 . 16 21 15 29 65 Terrain Destroyed 1182 | . 26 . 33 68 . . 5 3 60 102 2 48 49 55 81 . 24 31 . . 28 54 . 112 218 36 76 71 Melee 41 | . . . 3 2 . . . . . . . . . . . . . 2 . . . . . 7 17 10 . . Projectile 342 | . . . . 3 . . . 3 6 3 2 2 18 12 8 . . 11 . . 28 12 . 55 26 13 69 71 AOE 798 | . 26 . 30 63 . . 5 . 54 98 . 46 31 43 73 . 24 18 . . . 42 . 50 175 13 7 . Terrain Rammed . | . . . . . . . . . . . . . . . . . . . . . . . . . . . . . Walls Destroyed . | . . . . . . . . . . . . . . . . . . . . . . . . . . . . . Machines Disabled . | . . . . . . . . . . . . . . . . . . . . . . . . . . . . . Actions | -11 -10 -10 -9 -9 -9 -7 -7 -7 -6 -6 -5 -5 -5 -5 -5 -4 -4 -4 -4 -4 -4 -3 -3 -2 -2 -2 -1 -1 --------- Run | Yrd Mat Min Mat Sto Rec Fac Low Low Fac Gar Fac Gar Fac Gar Fac Fac Gar Ext Cet Arc Hub Res Qua Res Tes Sec Acc Com Total 30596 | 83 959 228 1851 824 1623 871 1027 1427 1156 1649 441 674 1736 724 1696 168 921 2340 289 296 1203 1732 879 1492 1071 866 1691 679 Wait 5527 | . 35 7 320 85 235 115 352 30 345 639 5 266 73 444 428 1 266 522 13 128 327 115 135 334 131 12 65 99 Move 21760 | 60 789 206 1292 571 1213 678 614 1376 711 842 387 356 1530 186 1148 151 553 1548 244 158 692 1489 681 880 784 737 1411 473 Hop 9 | . . . . . . 2 . . . . 5 1 . . . . . . . . . . . . 1 . . . Pick Up 376 | 5 18 1 39 7 10 15 7 3 14 15 6 9 10 9 18 7 13 24 6 . 9 24 14 32 23 16 16 6 Fast Attach 230 | 5 8 3 15 7 3 4 3 1 5 7 1 2 13 8 14 1 5 11 2 . 12 15 7 25 10 13 30 . Attach 195 | . 7 4 5 1 4 4 3 . 3 7 3 1 8 4 13 1 10 15 1 . 16 7 4 23 15 15 13 8 Detach 53 | . 1 . 2 . . 1 2 . . . 1 1 . 1 1 . 7 3 . . 2 1 2 6 4 3 9 6 Swap 252 | 2 5 . 18 23 . 7 2 2 6 12 8 6 19 10 4 . 6 13 3 4 5 11 5 26 14 13 20 8 Drop 456 | . 17 4 31 20 17 17 14 3 11 22 10 5 9 17 15 1 10 34 7 1 9 27 22 51 23 12 40 7 Fire 1314 | 11 71 3 109 80 65 28 30 12 61 103 15 27 70 41 54 6 26 94 13 4 89 26 1 88 24 10 87 66 Melee 198 | . . . 18 22 . . . . . 2 . . . . . . 5 25 . . 20 12 8 23 32 31 . . Ram 4 | . 1 . . . . . . . . . . . . . . . . . . . 1 2 . . . . . . Kick 25 | . . . . . . . . . . . . . . . 1 . . 9 . 1 10 . . 4 . . . . Crush 39 | . 7 . 2 1 3 . . . . . . . 3 . . . . . . . 11 3 . . 5 4 . . Escape Stasis 38 | . . . . . . . . . . . . . . 4 . . 20 3 . . . . . . 5 . . 6 Rewire 120 | . . . . 7 73 . . . . . . . 1 . . . . 39 . . . . . . . . . . Trap . | . . . . . . . . . . . . . . . . . . . . . . . . . . . . . Miscellaneous . | . . . . . . . . . . . . . . . . . . . . . . . . . . . . . Route ------- -11/Scrapyard -10/Materials (discovered 5 exits: *Mat x3 / [*Min] / Sub) -10/Mines -9/Materials (discovered 6 exits: *Mat x3 / [*Min] / *Sto x2) -9/Storage (discovered 2 exits: Mat / *Rec) -9/Recycling -7/Factory -7/Lower Caves -7/Lower Caves (discovered 2 exits: *Fac / [*Zio]) -6/Factory (discovered 3 exits: Fac / Low / Gar) -6/Garrison (discovered 2 exits: *Fac x2) -5/Factory (discovered 2 exits: *Fac / Gar) -5/Garrison -5/Factory (discovered 6 exits: *Fac x2 / [*Upp x2] / Gar / Gar) -5/Garrison -5/Factory -4/Factory (discovered 2 exits: [*Upp] / Gar) -4/Garrison (discovered 3 exits: *Ext x3) -4/Extension (discovered 3 exits: *Res x2 / *Cet) -4/Cetus (discovered 2 exits: *Res / *Arc) -4/Archives (discovered 2 exits: *Res / *Hub) -4/Hub_04(d) (discovered 2 exits: *Res x2) -3/Research (discovered 4 exits: *Res x3 / *Qua) -3/Quarantine -2/Research (discovered 3 exits: *Acc / *Tes x2) -2/Testing (discovered 2 exits: Acc / *Sec) -2/Section 7 -1/Access -1/Command 0b10 Command History --------- Turn | Location | Event 25 | -11/Scrapyard | Discovered new exit (range 15) 78 | -11/Scrapyard | Entered Materials 314 | -10/Materials | Discovered new exit (range 12) 343 | -10/Materials | Build established: Mutant 600 | -10/Materials | Discovered new exit (range 13) 783 | -10/Materials | Discovered new exit (range 8) 917 | -10/Materials | Learned location of Recycling (-9) 967 | -10/Materials | Identified exit to Subcaves 1042 | -10/Materials | Learned Storage security intel 1084 | -10/Materials | Identified exit to Materials 1136 | -10/Materials | Learned 2 Mines zone layouts 1199 | -10/Materials | Learned location of 1 exit from Recycling 1338 | -10/Materials | Entered Mines 1339 | -10/Mines | Assembled infested the area 1344 | -10/Mines | Assisted by a Guerilla fighting off Assembled 1362 | -10/Mines | Core integrity fell below 50% 1399 | -10/Mines | Lost 3 parts (1p1n1u) 1453 | -10/Mines | Discovered exit to Materials (range 5) 1456 | -10/Mines | Entered Materials 1456 | -9/Materials | Evolved 2 slots: Propulsion x1, Utility x1 1457 | -9/Materials | Identified exit to Storage 1969 | -9/Materials | Destroyed 10 combat bots 2003 | -9/Materials | Discovered new exit (range 12) 2343 | -9/Materials | Discovered new exit (range 12) 3278 | -9/Materials | Repaired Mni. Grenade Launcher 3305 | -9/Materials | Repaired Lgt. Treads 3505 | -9/Materials | Discovered exit to Storage (range 11) 3639 | -9/Materials | Discovered new exit (range 8) 3782 | -9/Materials | Learned Storage security intel 3866 | -9/Materials | Learned location of Storage (-9) 3895 | -9/Materials | Learned location of Zion (-7) 3915 | -9/Materials | Identified exit to Materials 3949 | -9/Materials | Learned Storage trap positions 4603 | -9/Materials | Entered Storage 4604 | -9/Storage | Identified exit to Recycling 4605 | -9/Storage | Loaded intel: 17 trap records 4675 | -9/Storage | Met a pair of Derelict thieves 5240 | -9/Storage | Build established: Scavenger-Mutant 5592 | -9/Storage | Repaired Med. Armor Plating? 5753 | -9/Storage | Core integrity fell below 50% 6203 | -9/Storage | First assault squad dispatched 6380 | -9/Storage | Used back door to open Recycling access 6389 | -9/Storage | Entered Recycling 6389 | -9/Recycling | Accompanied by 1 ally 6390 | -9/Recycling | Identified exit to Factory 7701 | -9/Recycling | Build established: Commander-Mutant 7711 | -9/Recycling | Learned 2 Storage zone layouts 7819 | -9/Recycling | Learned Materials emergency access door positions 7859 | -9/Recycling | Learned Materials stockpile data 7910 | -9/Recycling | Scanned before Scraplab entrance 7943 | -9/Recycling | Entered Scraplab 7954 | -9/Recycling | Angered Scraplab inhabitants 7956 | -9/Recycling | Found Prototype Device 7956 | -9/Recycling | Identified Scrap Engine 7971 | -9/Recycling | Learned 4 Materials zone layouts 8015 | -9/Recycling | Lost 6 allies 8489 | -9/Recycling | Build established: Construct 10496 | -9/Recycling | Entered Factory 10496 | -7/Factory | Accompanied by 3 allies 10496 | -7/Factory | Evolved 4 slots: Propulsion x2, Utility x2 11028 | -7/Factory | Discovered new exit (range 16) 11038 | -7/Factory | Identified exit to Lower Caves 11267 | -7/Factory | Entered Lower Caves 11267 | -7/Lower Caves | Accompanied by 3 allies 11858 | -7/Lower Caves | Learned location of 1 exit from Factory 12149 | -7/Lower Caves | Learned Factory interactive machine intel 12184 | -7/Lower Caves | Discovered new exit (range 8) 12189 | -7/Lower Caves | Entered another Lower Caves area 12603 | -7/Lower Caves | Learned location of 1 exit from Factory 12709 | -7/Lower Caves | Discovered new exit (range 5) 12890 | -7/Lower Caves | Discovered new exit (range 6) 12992 | -7/Lower Caves | Entered Factory 12992 | -6/Factory | Evolved 2 slots: Power x1, Weapon x1 12993 | -6/Factory | Identified exit to Lower Caves 12993 | -6/Factory | Identified exit to Factory 12994 | -6/Factory | Loaded intel: 52 interactive machine locations 13092 | -6/Factory | Spotted B-75 Beast 13272 | -6/Factory | Destroyed B-75 Beast 14520 | -6/Factory | Identified exit to Garrison 14638 | -6/Factory | Entered Garrison 14746 | -6/Garrison | Triggered checkpoint 14784 | -6/Garrison | Garrison Relay disabled 14993 | -6/Garrison | Triggered checkpoint 14993 | -6/Garrison | Spotted B-75 Beast 14993 | -6/Garrison | Triggered checkpoint 15067 | -6/Garrison | Destroyed B-75 Beast 15100 | -6/Garrison | Triggered checkpoint 15242 | -6/Garrison | Triggered checkpoint 15715 | -6/Garrison | Discovered exit to Factory (range 7) 15738 | -6/Garrison | Triggered checkpoint 15878 | -6/Garrison | Installed Relay Interface Framework 15898 | -6/Garrison | Garrison Relay disabled 15913 | -6/Garrison | Garrison Relay disabled 16049 | -6/Garrison | Triggered checkpoint 16083 | -6/Garrison | Garrison Relay disabled 16636 | -6/Garrison | Triggered checkpoint 16721 | -6/Garrison | Discovered exit to Factory (range 10) 16848 | -6/Garrison | Entered Factory 16848 | -5/Factory | Evolved 2 slots: Propulsion x1, Utility x1 17148 | -5/Factory | First assault squad dispatched 17383 | -5/Factory | Discovered new exit (range 16) 17395 | -5/Factory | Identified exit to Garrison 17395 | -5/Factory | Entered Garrison 17497 | -5/Garrison | Garrison Relay disabled 17595 | -5/Garrison | Triggered checkpoint 17694 | -5/Garrison | Triggered checkpoint 17755 | -5/Garrison | Destroyed 10 combat bots 17868 | -5/Garrison | Garrison Relay disabled 17908 | -5/Garrison | Discovered new exit (range 10) 17912 | -5/Garrison | Entered Factory 17999 | -5/Factory | Discovered new exit (range 15) 18087 | -5/Factory | Discovered new exit (range 4) 18148 | -5/Factory | Identified exit to Garrison 18171 | -5/Factory | Build established: Bothacker-Construct 18224 | -5/Factory | Discovered new exit (range 5) 18341 | -5/Factory | Discovered new exit (range 16) 18438 | -5/Factory | Spotted B-75 Beast 18561 | -5/Factory | Fabricated Y-54 Guardian? 18567 | -5/Factory | Build established: Construct 18639 | -5/Factory | Assembled infested ambush trap array 18673 | -5/Factory | Core integrity fell below 50% 18674 | -5/Factory | Garrison activated, responded to threat 18716 | -5/Factory | Lost 6 parts (2n2u2w) 18739 | -5/Factory | Destroyed 8 combat bots 18824 | -5/Factory | Found Imp. Powered Armor 18827 | -5/Factory | Identified exit to Garrison 18827 | -5/Factory | Entered Garrison 18915 | -5/Garrison | Triggered checkpoint 18967 | -5/Garrison | Garrison Relay disabled 19039 | -5/Garrison | Spotted B-75 Beast 19048 | -5/Garrison | Triggered checkpoint 19105 | -5/Garrison | Destroyed B-75 Beast 19180 | -5/Garrison | Triggered checkpoint 19280 | -5/Garrison | Build established: Bothacker-Construct 19415 | -5/Garrison | Triggered checkpoint 19641 | -5/Garrison | Discovered new exit (range 12) 19678 | -5/Garrison | System corruption reached 10% 19694 | -5/Garrison | Entered Factory 19721 | -5/Factory | Lost 3 parts (1p1n1u) 19846 | -5/Factory | Spotted B-75 Beast 20141 | -5/Factory | Build established: Hacker-Mutant 20544 | -5/Factory | Core integrity fell below 20% 20757 | -5/Factory | Lost 3 parts (3w) 20846 | -5/Factory | Allied Derelicts emerged from ambush trap array 20918 | -5/Factory | Lost 3 allies 21070 | -5/Factory | Fabricated B-48 Gladiator (x3) 21116 | -5/Factory | Fabricated B-48 Gladiator (x3) 21164 | -5/Factory | Fabricated B-48 Gladiator (x3) 21249 | -5/Factory | Fabricated B-48 Gladiator (x3) 21423 | -5/Factory | Build established: Commander-Gunner 21487 | -5/Factory | P-70 Sage assimilated allied Gladiator 6g 21524 | -5/Factory | Lost 5 allies 21776 | -5/Factory | Discovered new exit (range 16) 21817 | -5/Factory | Entered another Factory area 21817 | -4/Factory | Accompanied by 3 allies 21817 | -4/Factory | Evolved 2 slots: Utility x2 21869 | -4/Factory | Discovered new exit (range 15) 21885 | -4/Factory | Found Launcher Loader 21900 | -4/Factory | Build established: Hacker-Mutant 22002 | -4/Factory | Identified exit to Garrison 22008 | -4/Factory | Entered Garrison 22008 | -4/Garrison | Accompanied by 4 allies 22280 | -4/Garrison | Triggered checkpoint 22310 | -4/Garrison | Garrison Relay disabled 22451 | -4/Garrison | Triggered checkpoint 22476 | -4/Garrison | Spotted B-86 Titan 22522 | -4/Garrison | Lost 3 allies 22600 | -4/Garrison | Phase Generator disabled 22629 | -4/Garrison | Spotted B-86 Titan 22638 | -4/Garrison | Found Unknown Device 22638 | -4/Garrison | Identified Adv. Force Booster 22678 | -4/Garrison | Triggered checkpoint 22682 | -4/Garrison | Garrison Relay disabled 22746 | -4/Garrison | Discovered new exit (range 18) 22746 | -4/Garrison | Discovered new exit (range 57) 22746 | -4/Garrison | Discovered new exit (range 80) 22763 | -4/Garrison | Entered Extension 23537 | -4/Extension | Build established: Commander-Mutant 23905 | -4/Extension | Build established: Commander-Gunner 24041 | -4/Extension | Spotted B-86 Titan 24062 | -4/Extension | Allies destroyed B-86 Titan 24076 | -4/Extension | Spotted B-86 Titan 24077 | -4/Extension | Allies destroyed B-86 Titan 24105 | -4/Extension | Lost 4 allies 24421 | -4/Extension | Rescued a captive Derelict 24421 | -4/Extension | Rescued a captive Derelict 24510 | -4/Extension | Build established: Commander-Construct 24639 | -4/Extension | Rescued a captive Derelict 24930 | -4/Extension | Rescued a captive Derelict 25129 | -4/Extension | Energy Cycler disabled 25173 | -4/Extension | Lost 3 allies 25235 | -4/Extension | Discovered new exit (range 10) 25236 | -4/Extension | Discovered new exit (range 6) 25347 | -4/Extension | Discovered new exit (range 13) 25364 | -4/Extension | Identified exit to Research 25496 | -4/Extension | Rescued A7 25857 | -4/Extension | Entered Cetus 25857 | -4/Cetus | Accompanied by 14 allies (A7) 25862 | -4/Cetus | Acquired a Cetus Manufacturing Module code from A7 25874 | -4/Cetus | Spotted Cetus Guard 25874 | -4/Cetus | Spotted Cetus Guard 25876 | -4/Cetus | Spotted Cetus Guard 25876 | -4/Cetus | Spotted Cetus Guard 25879 | -4/Cetus | Destroyed Cetus Guard 25881 | -4/Cetus | Destroyed Cetus Guard 25888 | -4/Cetus | Destroyed Cetus Guard 25888 | -4/Cetus | Destroyed Cetus Guard 25992 | -4/Cetus | Started Cetus Manufacturing Module 26000 | -4/Cetus | Escorted A7 to Cetus Mainframe 26017 | -4/Cetus | Manufactured an Enhanced Grunt 26022 | -4/Cetus | Discovered new exit (range 16) 26042 | -4/Cetus | Manufactured an Enhanced Grunt 26044 | -4/Cetus | Spotted Cetus Guard 26044 | -4/Cetus | Spotted Cetus Guard 26046 | -4/Cetus | Spotted Cetus Guard 26051 | -4/Cetus | Destroyed Cetus Guard 26061 | -4/Cetus | Allies destroyed Cetus Guard 26062 | -4/Cetus | Extracted ID and sensor layout for unrecognized location from A7's data core 26067 | -4/Cetus | Manufactured an Enhanced Grunt 26068 | -4/Cetus | Spotted Cetus Guard 26076 | -4/Cetus | Allies destroyed Cetus Guard 26092 | -4/Cetus | Manufactured an Enhanced Grunt 26100 | -4/Cetus | Lost 4 allies 26117 | -4/Cetus | Manufactured an Enhanced Grunt 26139 | -4/Cetus | Discovered exit to Research (range 15) 26146 | -4/Cetus | Met Revision 17 26303 | -4/Cetus | Entered Archives 26303 | -4/Archives | Accompanied by 13 allies 26341 | -4/Archives | Met Zhirov 26347 | -4/Archives | Reinforcements dispatched to Archives 26354 | -4/Archives | Unable to access archive contents 26366 | -4/Archives | Discovered exit to Research (range 13) 26392 | -4/Archives | Reinforcements dispatched to Archives 26394 | -4/Archives | Zhirov warped through subspace 26412 | -4/Archives | Zhirov detonated Archives 26412 | -4/Archives | Discovered new exit (range 14) 26443 | -4/Archives | Lost 13 allies 26673 | -4/Archives | Build established: Hacker-Construct 26689 | -4/Archives | Entered Hub_04(d) 26727 | -4/Hub_04(d) | Discovered exit to Research (range 16) 26745 | -4/Hub_04(d) | Garrison activated, responded to threat 27395 | -4/Hub_04(d) | Network Hub disabled 27395 | -4/Hub_04(d) | Network Hub disabled 27426 | -4/Hub_04(d) | Lost 3 parts (1u2w) 27807 | -4/Hub_04(d) | Build established: Scavenger-Construct 27932 | -4/Hub_04(d) | Core integrity fell below 50% 28176 | -4/Hub_04(d) | Lost 4 parts (1p1n2u) 28270 | -4/Hub_04(d) | Discovered exit to Research (range 11) 28424 | -4/Hub_04(d) | Network Hub disabled 28438 | -4/Hub_04(d) | Build established: Construct 28439 | -4/Hub_04(d) | First assault squad dispatched 28493 | -4/Hub_04(d) | Entered Research 28493 | -3/Research | Evolved 2 slots: Power x1, Utility x1 28693 | -3/Research | Revision forces began assault on 0b10 28908 | -3/Research | Lost 6 allies 28910 | -3/Research | Discovered new exit (range 13) 28939 | -3/Research | Found Fusion Bomb Launcher 29043 | -3/Research | Fabricated M-13 Machinist (x1) 29193 | -3/Research | Research terminal network offline 29404 | -3/Research | Discovered new exit (range 12) 29450 | -3/Research | Identified exit to Research 29536 | -3/Research | Discovered exit to Research (range 13) 29633 | -3/Research | Spotted Executioner 29736 | -3/Research | Spotted Striker 29748 | -3/Research | Destroyed Striker 29795 | -3/Research | Destroyed Executioner 29799 | -3/Research | Found Prototype Processor 29799 | -3/Research | Identified Exp. Targeting Computer 29805 | -3/Research | Found Prototype Processor 29865 | -3/Research | Discovered new exit (range 15) 29875 | -3/Research | Identified exit to Quarantine 29875 | -3/Research | Entered Quarantine 29921 | -3/Quarantine | Found Alien Reactor 29921 | -3/Quarantine | Identified Matter Drive 29933 | -3/Quarantine | Found Alien Artifact 29934 | -3/Quarantine | Identified Hpw. Transdimensional Reconstructor 29934 | -3/Quarantine | Warped through subspace 29995 | -3/Quarantine | Repaired Centrium Medium Armor Plating 30055 | -3/Quarantine | Repaired Centrium Medium Armor Plating 30072 | -3/Quarantine | Found Alien Artifact 30075 | -3/Quarantine | Discovered exit to Research (range 5) 30199 | -3/Quarantine | Found Alien Artifact 30214 | -3/Quarantine | Found Alien Artifact 30216 | -3/Quarantine | Found Hpw. Transdimensional Reconstructor 30286 | -3/Quarantine | Build established: Scavenger-Mutant 30303 | -3/Quarantine | Found Alien Energy Cannon 30338 | -3/Quarantine | Met incapacitated Sigix Warrior 30338 | -3/Quarantine | Lockdown squad dispatched 30338 | -3/Quarantine | Spotted Lightning 30338 | -3/Quarantine | Spotted Lightning 30338 | -3/Quarantine | Spotted Lightning 30368 | -3/Quarantine | Spotted Alpha 7 30377 | -3/Quarantine | Found Alien Launcher 30448 | -3/Quarantine | Identified Dimensional Node Initializer 30448 | -3/Quarantine | Initialized slip node 30475 | -3/Quarantine | Found Alien Slashing Weapon 30475 | -3/Quarantine | Identified Sigix Broadsword 30537 | -3/Quarantine | Found Alien Artifact 30554 | -3/Quarantine | Identified Phase Redirector 30556 | -3/Quarantine | Identified Transdimensional Reconstructor 30556 | -3/Quarantine | Warped through subspace to slip node 30565 | -3/Quarantine | Entered Research 30565 | -2/Research | Evolved 2 slots: Utility x2 30595 | -2/Research | Discovered new exit (range 12) 30724 | -2/Research | Discovered new exit (range 3) 30871 | -2/Research | Build established: Mutant 31217 | -2/Research | Warped through subspace 31242 | -2/Research | Spotted B-90 Cyclops 31246 | -2/Research | Identified Core Cannon 31254 | -2/Research | Destroyed B-90 Cyclops 31627 | -2/Research | Build established: Scavenger-Construct 31677 | -2/Research | Found Fusion Bomb Launcher 31718 | -2/Research | Found Prototype Protection 31718 | -2/Research | Identified Centrium Heavy Armor Plating 31815 | -2/Research | First assault squad dispatched 32107 | -2/Research | Spotted B-90 Cyclops 32124 | -2/Research | Identified exit to Testing 32159 | -2/Research | Entered Testing 32176 | -2/Testing | Lost 4 parts (1p3u) 32180 | -2/Testing | Found Centrium Heavy Armor Plating 32303 | -2/Testing | Protovariant out of control (PD-PSEHH518XH) 32303 | -2/Testing | Unleashed a protovariant (PD-PSEHH518XH) 32454 | -2/Testing | Build established: Gladiator 32500 | -2/Testing | Spotted Alpha 7 32509 | -2/Testing | Spotted Striker 32539 | -2/Testing | Core integrity fell below 50% 32580 | -2/Testing | Destroyed 7 combat bots 32584 | -2/Testing | Identified exit to Access 32634 | -2/Testing | Found Prototype Energy Gun 32634 | -2/Testing | Identified Hyp. EM Gauss Rifle 32658 | -2/Testing | Found Prototype Device 32679 | -2/Testing | System corruption reached 10% 32807 | -2/Testing | Scanned by Researcher 32842 | -2/Testing | Found Prototype Energy Cannon 32878 | -2/Testing | Found Prototype Energy Cannon 32878 | -2/Testing | Identified Null Cannon 33012 | -2/Testing | Spotted Fortress 33030 | -2/Testing | Identified Exp. Shock Absorption System 33067 | -2/Testing | Lost 3 parts (3u) 33075 | -2/Testing | Discovered new exit (range 6) 33093 | -2/Testing | Identified Cld. Nova Cannon 33161 | -2/Testing | Entered Section 7 33202 | -2/Section 7 | Found Alien Artifact 33221 | -2/Section 7 | Found Alien Artifact 33221 | -2/Section 7 | Identified Microwarp Drive 33293 | -2/Section 7 | Found Alien Artifact 33314 | -2/Section 7 | Identified Integrated Mediator 33314 | -2/Section 7 | Identified Integrated Dissipator 33314 | -2/Section 7 | Installed Integrated Mediator, increased core attachment efficiency 33315 | -2/Section 7 | Installed Integrated Dissipator, increased core heat dissipation (+20) 33328 | -2/Section 7 | Spotted S7 Guard 33354 | -2/Section 7 | Found Alien Artifact 33359 | -2/Section 7 | Identified Navigation Efficiency Matrix 33359 | -2/Section 7 | Installed Navigation Efficiency Matrix, process failed with unexpected side effects 33389 | -2/Section 7 | Lost 4 parts (1p1u2w) 33446 | -2/Section 7 | Spotted B-90 Cyclops 33457 | -2/Section 7 | Spotted S7 Guard 33482 | -2/Section 7 | Spotted S7 Guard 33494 | -2/Section 7 | Found Alien Artifact 33494 | -2/Section 7 | Identified Core Physics Calibrator 33626 | -2/Section 7 | Spotted S7 Guard 33634 | -2/Section 7 | Found Alien Artifact 33733 | -2/Section 7 | Lost 3 parts (1p1u1w) 33833 | -2/Section 7 | Found Integrated Mediator 33911 | -2/Section 7 | Search patrols dispatched 33934 | -2/Section 7 | Core integrity fell below 20% 33970 | -2/Section 7 | Found Alien Artifact 33970 | -2/Section 7 | Identified Integrity Redistributor 33970 | -2/Section 7 | Used Integrity Redistributor, redistributed integrity to core (+219) 33980 | -2/Section 7 | Entered Access 33980 | -1/Access | Evolved 2 slots (calibrated): Power x1, Propulsion x1, -Utility x1, Weapon x1 33981 | -1/Access | Installed Integrated Mediator, increased core attachment efficiency 33982 | -1/Access | Identified Integrated Thermoelectric Network 33982 | -1/Access | Installed Integrated Thermoelectric Network, gained heat-energy exchange potential 33988 | -1/Access | Identified Subatomic Replicator 33988 | -1/Access | Used Subatomic Replicator to replicate Null Cannon 34264 | -1/Access | Spotted B-99 Colossus 34462 | -1/Access | Spotted B-99 Colossus 34469 | -1/Access | Spotted B-99 Colossus 34730 | -1/Access | First assault squad dispatched 34989 | -1/Access | Lost 3 parts (1p2n) 34998 | -1/Access | Core integrity fell below 50% 35183 | -1/Access | Destroyed 9 combat bots 35298 | -1/Access | Identified exit to Command 35333 | -1/Access | Found Unknown Protection 35378 | -1/Access | Entered Command 35617 | -1/Command | Spotted B-99 Colossus 35664 | -1/Command | Build established: Generator-Tank 35749 | -1/Command | Core integrity fell below 20% 35770 | -1/Command | Spotted Combat Programmer 35881 | -1/Command | Crushed by falling debris 35912 | -1/Command | Met MAIN.C 35992 | -1/Command | Interfaced with 0b10 Conduit 35992 | *** | Assimilated 0b10! Last Messages --------------- 35945_ Navigation matrix triggers involuntary quantum shift. 35947_ Adv. Corruption Screen intercepted 1% system corruption. 35955_ Null Cannon destroyed. 35959_ Adv. Corruption Screen intercepted 1% system corruption. 35981_ Dropped ECM Suite. 35982_ Acquired ECM Suite. 35985_ Navigation matrix triggers involuntary quantum shift. 35986_ Microwarped (distance 37). 35987_ Adv. Corruption Screen intercepted 1% system corruption. 35990_ Dropped Adv. Energy Well. 35991_ Extracted 326 energy. 35992_ Interfacing with system... 35992_ Overriding active MAIN.C lock. [Achievement: MAIN.CPP] [Achievement: Superachiever] Map ----- +----------------------------------------------------+ | ?????????????????????????????????????????????????? | | ############################################### | | ############################################### | | ############################################### | | # ########################################### | | ### ########################################### | | ### ########################################### | | ### ########################################### | | ### ########################################### | | ###### ########################################### | | ##### ########################################### | | ##### ########################################### | | ##### ########################################### | | ##### ########################################### | | ###############""""""" """" ############## | | ########"" "" ############## | | ########""""" "" ############## | | "" ########""""""""""" / | | """"########" " """ ; | | """"########"" """""" ; | | "" ########"" """""" ############## | | ######## " """""" MMM ############## | | ######## " ""!MMM ############## | | ##+############ " " MMM ""############## | | ###########""""""""" """""""############## | | # ###########"" @ """""""""############## | | # ########### """""""""""############## | | # ########### " " " " ############## | | # ########### " " " " ############## | | """ " " " """" " ############## | | """ """ " " """" ############## | | """ " " " " ############## | | ###+# ##### """""""""" " ############## | | # ##### " """ " """"""""############## | | # ##### """ " " " ############## | | # ######################################## | | # ######################################## | | # ######################################## | | + ######################################## | | ##### ######################################## | | ## ## ######################################## | | ## ## ######################################## | | ## ## ######################################## | | ## ## ######################################## | | ## ## ######################################## | | ## ## ######################################## | | ## ######################################## | | ##### ######################################## | | #### ######################################## | | ######################################## | +----------------------------------------------------+ Best States ------------- Heat Dissipation 93 Coolant Potential 120 Energy Generation 83 Energy Capacity 1285 Matter Stores 300 Matter Capacity 300 Sight Range 20 Terrain Scan Range 24 Terrain Scan Density 210 ECM Strength 2 Jamming Range 16 Cloak Strength 4 Power Amplification 20 Corruption Containment 12 Corruption Block 20 Armor Coverage 600 Resistance: KI 25 Resistance: TH 30 Resistance: EM 20 Propulsion Shielding 66 Utility Shielding 66 Weapon Shielding 66 Melee Speed Boost 20 Phase Shifting 10 Evasion (%) 78 Targeting Accuracy 18 Melee Accuracy 14 Target Analysis 8 Core Analysis 6 Recoil Reduction 6 Force Boost 40 Salvage Targeting 4 Offensive Hacking 26 Defensive Hacking 14 Relay Coupler Types 3 Relay Coupler Value 69 Authchip Count 6 Item Schematics ----------------- Mni. Grenade Launcher | -9/Materials | Scanalyzed Med. Storage Unit | -9/Materials | Scanalyzed Autogun | -9/Materials | Scanalyzed Flight Unit | -9/Materials | Scanalyzed Hcp. Storage Unit | -9/Materials | Hacked Imp. Treads | -9/Materials | Hacked Com. Mass Driver | -2/Testing | Archive Adv. Matter Compressor | -2/Testing | Archive Imp. Quantum Reactor | -2/Testing | Archive Neutron Missile Launcher | -2/Testing | Archive Exp. Coolant Injector | -2/Testing | Archive Adv. Thermal Defense Suite | -2/Section 7 | Archive Hvy. Tesla Rifle | -2/Section 7 | Archive Robot Schematics ------------------ M-13 Machinist | -10/Materials | Hacked G-34 Mercenary | -9/Storage | Hacked B-48 Gladiator | -5/Factory | Hacked Fabricated ------------ Y-54 Guardian | x2 | -5/Factory | Preloaded, Authchip B-48 Gladiator | x3 | -5/Factory | Authchip B-48 Gladiator | x3 | -5/Factory | Authchip B-48 Gladiator | x3 | -5/Factory | Authchip B-48 Gladiator | x3 | -5/Factory | Authchip M-13 Machinist | x1 | -3/Research Alien Tech Used ----------------- Matter Drive High-powered Transdimensional Reconstructor Dimensional Node Initializer Sigix Broadsword Transdimensional Reconstructor Core Cannon Phase Redirector Microwarp Drive Integrated Mediator Integrated Dissipator Navigation Efficiency Matrix Core Physics Calibrator Integrity Redistributor Integrated Thermoelectric Network Subatomic Replicator Achievements -------------- Artifact Hunter MAIN.CPP Superachiever Challenges ------------ None Game ------ Seed ElectrostormBackupInsulator Manual? 0 Play Time 07:52:16 Cumulative 742.6 hours Start 2024.09.22 @ 19:34:47 End 2024.09.24 @ 20:49:09 Sessions 7 Manual Loads 0 Difficulty Rogue Special Mode None Game No. 161 Rogue 23 Adventurer 138 Explorer 0 Win Type 4 Total 13 Types 8/0/1/2/1/0/0/0/1 Lore% 78 Gallery% 84 Achievement% 75 Wizard Run 0 Options --------- Layout 2 ASCII 0 Keyboard 0 Movement Mouse Keybinds 0 Fullscreen 1 Font 24/Smallcaps Map View 50x49 Zoom Use 1% Tactical HUD 1 Map Filters NONE Filters NONE Steam 1 RUN: c79b5b22-94a5-4c0a-bd41-5c83fbd326f2